{"text_format":"1","workbook":"xlsx","n_sheets":4,"sheets":["клиенты","товары","заказы","бланк"],"not_rendered":{"charts":0,"images":0,"macros":1,"external_links":0,"defined_names":18,"comments":0,"pivot_tables":0},"unopened":[],"bounds":{"document_bytes":16777216,"sheet_cells":100000,"rows_first":2000,"rows_last":500,"rows_between":2000,"halvings":0,"cell_chars":16384,"cell_head_chars":4096},"cells_cut":0,"cells_raw":0,"read":"whole","date_system":"1900"}

{"sheet":"клиенты","index":0,"n_rows":7,"n_cols":9,"rows_kept":7,"cut":false,"hidden":false,"merged":[]}
["Название фирмы","Код","Контактная персона","Индекс","Город","Улица","Телефакс","Телефон","Скидка"]
["Азимут",1,"Орлова Мария",690089,"Владивосток","Фирсова, 60",2344542,2344542,2.1999999999999999E-2]
["Мандарин",2,"Игорь Юрьевич Петренко",690017,"Владивосток","Надибаидзе, 17А",2349887,2349887,0.10299999999999999]
["Матвеевская слобода",3,"Матвеев Олег Степанович",620056,"Уссурийск","Петра Великого 10",42345696,42345696,4.4999999999999998E-2]
["Родные просторы",4,"Елизавета Бондарева",690089,"Владивосток","Постышева 17",2349730,2349730,6.0999999999999999E-2]
["Шульц и Ко",5,"Лев Уступин",6900812,"Владивосток","Фастовская 12",2346556,2346556,0.12]
["ЮКА",6,"Алла Викторовна Рыль",690051,"Владивосток","Луговая 56",2348523,2348523,0.15]

{"sheet":"товары","index":1,"n_rows":11,"n_cols":3,"rows_kept":11,"cut":false,"hidden":false,"merged":[]}
["Номер","Наименование товара","Цена"]
[1,"Яблоки \"Антоновка\"",78]
[2,"Яблоки \"Пинк леди\"",102]
[3,"Груши \"Дюшес\"",115]
[4,"Дыня \"Медовая\"",134]
[5,"Огурцы \"Суражевские\"",74]
[6,"Огурцы \"Белоречка\"",80]
[7,"Клубника садовая",230]
[8,"Белые грибы",305]
[9,"Бананы \"Эквадор\"",60]
[10,"Лук шалот",123]

{"sheet":"заказы","index":2,"n_rows":14,"n_cols":12,"rows_kept":14,"cut":false,"hidden":false,"merged":[]}
["Месяц","Дата","Номер заказа","Номер товара","Наименование товара","Количество","Цена за ед.","Код заказчика","Название фирмы","Сумма заказа","Скидка","Уплачено"]
["май",41034,1,6,{"$f":"IF([Номер товара]=\"\",\"\",LOOKUP([Номер товара],Номер,Товар))","v":"Огурцы \"Белоречка\""},2,{"$f":"IF([Номер товара]=\"\",\"\",LOOKUP([Номер товара],Номер,Цена))","v":80},3,{"$f":"IF([Код заказчика]=\"\",\"\",LOOKUP([Код заказчика],Код,Фирма))","v":"Матвеевская слобода"},{"$f":"IF([Количество]=\"\",\"\",[Количество]*[Цена за ед.])","v":160},{"$f":"IF([Код заказчика]=\"\",\"\",LOOKUP([Код заказчика],Код,Скидка))","v":4.4999999999999998E-2},{"$f":"IF([Сумма заказа]=\"\",\"\",[Сумма заказа]-[Сумма заказа]*[Скидка])","v":152.80000000000001}]
["май",41035,2,10,{"$f":"IF([Номер товара]=\"\",\"\",LOOKUP([Номер товара],Номер,Товар))","v":"Лук шалот"},7,{"$f":"IF([Номер товара]=\"\",\"\",LOOKUP([Номер товара],Номер,Цена))","v":123},6,{"$f":"IF([Код заказчика]=\"\",\"\",LOOKUP([Код заказчика],Код,Фирма))","v":"ЮКА"},{"$f":"IF([Количество]=\"\",\"\",[Количество]*[Цена за ед.])","v":861},{"$f":"IF([Код заказчика]=\"\",\"\",LOOKUP([Код заказчика],Код,Скидка))","v":0.15},{"$f":"IF([Сумма заказа]=\"\",\"\",[Сумма заказа]-[Сумма заказа]*[Скидка])","v":731.85}]
["июнь",41072,3,2,{"$f":"IF([Номер товара]=\"\",\"\",LOOKUP([Номер товара],Номер,Товар))","v":"Яблоки \"Пинк леди\""},23,{"$f":"IF([Номер товара]=\"\",\"\",LOOKUP([Номер товара],Номер,Цена))","v":102},4,{"$f":"IF([Код заказчика]=\"\",\"\",LOOKUP([Код заказчика],Код,Фирма))","v":"Родные просторы"},{"$f":"IF([Количество]=\"\",\"\",[Количество]*[Цена за ед.])","v":2346},{"$f":"IF([Код заказчика]=\"\",\"\",LOOKUP([Код заказчика],Код,Скидка))","v":6.0999999999999999E-2},{"$f":"IF([Сумма заказа]=\"\",\"\",[Сумма заказа]-[Сумма заказа]*[Скидка])","v":2202.8940000000002}]
["июль",41111,4,1,{"$f":"IF([Номер товара]=\"\",\"\",LOOKUP([Номер товара],Номер,Товар))","v":"Яблоки \"Антоновка\""},19,{"$f":"IF([Номер товара]=\"\",\"\",LOOKUP([Номер товара],Номер,Цена))","v":78},6,{"$f":"IF([Код заказчика]=\"\",\"\",LOOKUP([Код заказчика],Код,Фирма))","v":"ЮКА"},{"$f":"IF([Количество]=\"\",\"\",[Количество]*[Цена за ед.])","v":1482},{"$f":"IF([Код заказчика]=\"\",\"\",LOOKUP([Код заказчика],Код,Скидка))","v":0.15},{"$f":"IF([Сумма заказа]=\"\",\"\",[Сумма заказа]-[Сумма заказа]*[Скидка])","v":1259.7}]
["август",41135,5,7,{"$f":"IF([Номер товара]=\"\",\"\",LOOKUP([Номер товара],Номер,Товар))","v":"Клубника садовая"},56,{"$f":"IF([Номер товара]=\"\",\"\",LOOKUP([Номер товара],Номер,Цена))","v":230},1,{"$f":"IF([Код заказчика]=\"\",\"\",LOOKUP([Код заказчика],Код,Фирма))","v":"Азимут"},{"$f":"IF([Количество]=\"\",\"\",[Количество]*[Цена за ед.])","v":12880},{"$f":"IF([Код заказчика]=\"\",\"\",LOOKUP([Код заказчика],Код,Скидка))","v":2.1999999999999999E-2},{"$f":"IF([Сумма заказа]=\"\",\"\",[Сумма заказа]-[Сумма заказа]*[Скидка])","v":12596.64}]
["август",41136,6,3,{"$f":"IF([Номер товара]=\"\",\"\",LOOKUP([Номер товара],Номер,Товар))","v":"Груши \"Дюшес\""},30,{"$f":"IF([Номер товара]=\"\",\"\",LOOKUP([Номер товара],Номер,Цена))","v":115},2,{"$f":"IF([Код заказчика]=\"\",\"\",LOOKUP([Код заказчика],Код,Фирма))","v":"Мандарин"},{"$f":"IF([Количество]=\"\",\"\",[Количество]*[Цена за ед.])","v":3450},{"$f":"IF([Код заказчика]=\"\",\"\",LOOKUP([Код заказчика],Код,Скидка))","v":0.10299999999999999},{"$f":"IF([Сумма заказа]=\"\",\"\",[Сумма заказа]-[Сумма заказа]*[Скидка])","v":3094.65}]
["август",41137,7,4,{"$f":"IF([Номер товара]=\"\",\"\",LOOKUP([Номер товара],Номер,Товар))","v":"Дыня \"Медовая\""},14,{"$f":"IF([Номер товара]=\"\",\"\",LOOKUP([Номер товара],Номер,Цена))","v":134},3,{"$f":"IF([Код заказчика]=\"\",\"\",LOOKUP([Код заказчика],Код,Фирма))","v":"Матвеевская слобода"},{"$f":"IF([Количество]=\"\",\"\",[Количество]*[Цена за ед.])","v":1876},{"$f":"IF([Код заказчика]=\"\",\"\",LOOKUP([Код заказчика],Код,Скидка))","v":4.4999999999999998E-2},{"$f":"IF([Сумма заказа]=\"\",\"\",[Сумма заказа]-[Сумма заказа]*[Скидка])","v":1791.58}]
["сентябрь",41175,8,5,{"$f":"IF([Номер товара]=\"\",\"\",LOOKUP([Номер товара],Номер,Товар))","v":"Огурцы \"Суражевские\""},5,{"$f":"IF([Номер товара]=\"\",\"\",LOOKUP([Номер товара],Номер,Цена))","v":74},5,{"$f":"IF([Код заказчика]=\"\",\"\",LOOKUP([Код заказчика],Код,Фирма))","v":"Шульц и Ко"},{"$f":"IF([Количество]=\"\",\"\",[Количество]*[Цена за ед.])","v":370},{"$f":"IF([Код заказчика]=\"\",\"\",LOOKUP([Код заказчика],Код,Скидка))","v":0.12},{"$f":"IF([Сумма заказа]=\"\",\"\",[Сумма заказа]-[Сумма заказа]*[Скидка])","v":325.60000000000002}]
["сентябрь",41176,9,8,{"$f":"IF([Номер товара]=\"\",\"\",LOOKUP([Номер товара],Номер,Товар))","v":"Белые грибы"},11,{"$f":"IF([Номер товара]=\"\",\"\",LOOKUP([Номер товара],Номер,Цена))","v":305},6,{"$f":"IF([Код заказчика]=\"\",\"\",LOOKUP([Код заказчика],Код,Фирма))","v":"ЮКА"},{"$f":"IF([Количество]=\"\",\"\",[Количество]*[Цена за ед.])","v":3355},{"$f":"IF([Код заказчика]=\"\",\"\",LOOKUP([Код заказчика],Код,Скидка))","v":0.15},{"$f":"IF([Сумма заказа]=\"\",\"\",[Сумма заказа]-[Сумма заказа]*[Скидка])","v":2851.75}]
["октябрь",41189,10,9,{"$f":"IF([Номер товара]=\"\",\"\",LOOKUP([Номер товара],Номер,Товар))","v":"Бананы \"Эквадор\""},21,{"$f":"IF([Номер товара]=\"\",\"\",LOOKUP([Номер товара],Номер,Цена))","v":60},1,{"$f":"IF([Код заказчика]=\"\",\"\",LOOKUP([Код заказчика],Код,Фирма))","v":"Азимут"},{"$f":"IF([Количество]=\"\",\"\",[Количество]*[Цена за ед.])","v":1260},{"$f":"IF([Код заказчика]=\"\",\"\",LOOKUP([Код заказчика],Код,Скидка))","v":2.1999999999999999E-2},{"$f":"IF([Сумма заказа]=\"\",\"\",[Сумма заказа]-[Сумма заказа]*[Скидка])","v":1232.28}]
["октябрь",41190,11,7,{"$f":"IF([Номер товара]=\"\",\"\",LOOKUP([Номер товара],Номер,Товар))","v":"Клубника садовая"},11,{"$f":"IF([Номер товара]=\"\",\"\",LOOKUP([Номер товара],Номер,Цена))","v":230},6,{"$f":"IF([Код заказчика]=\"\",\"\",LOOKUP([Код заказчика],Код,Фирма))","v":"ЮКА"},{"$f":"IF([Количество]=\"\",\"\",[Количество]*[Цена за ед.])","v":2530},{"$f":"IF([Код заказчика]=\"\",\"\",LOOKUP([Код заказчика],Код,Скидка))","v":0.15},{"$f":"IF([Сумма заказа]=\"\",\"\",[Сумма заказа]-[Сумма заказа]*[Скидка])","v":2150.5}]
["ноябрь",41191,11,2,{"$f":"IF([Номер товара]=\"\",\"\",LOOKUP([Номер товара],Номер,Товар))","v":"Яблоки \"Пинк леди\""},20,{"$f":"IF([Номер товара]=\"\",\"\",LOOKUP([Номер товара],Номер,Цена))","v":102},6,{"$f":"IF([Код заказчика]=\"\",\"\",LOOKUP([Код заказчика],Код,Фирма))","v":"ЮКА"},{"$f":"IF([Количество]=\"\",\"\",[Количество]*[Цена за ед.])","v":2040},{"$f":"IF([Код заказчика]=\"\",\"\",LOOKUP([Код заказчика],Код,Скидка))","v":0.15},{"$f":"IF([Сумма заказа]=\"\",\"\",[Сумма заказа]-[Сумма заказа]*[Скидка])","v":1734}]
[null,null,11,3,{"$f":"IF([Номер товара]=\"\",\"\",LOOKUP([Номер товара],Номер,Товар))","v":"Груши \"Дюшес\""},30,{"$f":"IF([Номер товара]=\"\",\"\",LOOKUP([Номер товара],Номер,Цена))","v":115},7,{"$f":"IF([Код заказчика]=\"\",\"\",LOOKUP([Код заказчика],Код,Фирма))","v":"ЮКА"},{"$f":"IF([Количество]=\"\",\"\",[Количество]*[Цена за ед.])","v":3450},{"$f":"IF([Код заказчика]=\"\",\"\",LOOKUP([Код заказчика],Код,Скидка))","v":0.15},{"$f":"IF([Сумма заказа]=\"\",\"\",[Сумма заказа]-[Сумма заказа]*[Скидка])","v":2932.5}]

{"sheet":"бланк","index":3,"n_rows":174,"n_cols":10,"rows_kept":174,"cut":false,"hidden":false,"merged":[]}
[null,null,null,null,"Бланк заказа"]
[]
[null,null,null,"Заказ№",11,"от",{"$f":"IF($E$3=\"\",\"\",LOOKUP($E$3,Заказ,Дата))","v":0},null,null,{"$f":"(FLOOR(1+(ROW()-7)/4,1)>COUNTIF(Заказ,$E$3))*((ROW()+2)<MATCH(\"яяя\",$B:$B))","v":0}]
[null,null,null,null,null,null,null,null,null,{"$f":"(FLOOR(1+(ROW()-7)/4,1)>COUNTIF(Заказ,$E$3))*((ROW()+2)<MATCH(\"яяя\",$B:$B))","v":0}]
[null,"Название фирмы заказчика",null,null,{"$f":"IF($E$3=\"\",\"\",LOOKUP($E$3,Заказ,Фирма2))","v":"ЮКА"},null,null,"Код",{"$f":"IF($E$3=\"\",\"\",LOOKUP($E$3,Заказ,Код2))","v":7},{"$f":"(FLOOR(1+(ROW()-7)/4,1)>COUNTIF(Заказ,$E$3))*((ROW()+2)<MATCH(\"яяя\",$B:$B))","v":0}]
[null,null,null,null,null,null,null,null,null,{"$f":"(FLOOR(1+(ROW()-7)/4,1)>COUNTIF(Заказ,$E$3))*((ROW()+2)<MATCH(\"яяя\",$B:$B))","v":0}]
[null,"Наименование товара",null,null,{"$f":"IF(FLOOR(1+(ROW()-7)/4,1)>COUNTIF(Заказ,$E$3),\"\",INDEX(Товар2,SMALL(IF(Заказ=$E$3,ROW(заказы[]),\"\"),FLOOR(1+(ROW()-7)/4,1))-ROW(заказы[#Headers]),))","v":"Клубника садовая"},null,null,"№",{"$f":"IF(FLOOR(1+(ROW()-7)/4,1)>COUNTIF(Заказ,$E$3),\"\",INDEX(Номер2,SMALL(IF(Заказ=$E$3,ROW(заказы[]),\"\"),FLOOR(1+(ROW()-7)/4,1))-ROW(заказы[#Headers]),))","v":7},{"$f":"(FLOOR(1+(ROW()-7)/4,1)>COUNTIF(Заказ,$E$3))*((ROW()+2)<MATCH(\"яяя\",$B:$B))","v":0}]
[null,null,null,null,null,null,null,null,null,{"$f":"(FLOOR(1+(ROW()-7)/4,1)>COUNTIF(Заказ,$E$3))*((ROW()+2)<MATCH(\"яяя\",$B:$B))","v":0}]
[null,"Заказываемое количество",null,null,{"$f":"IF(FLOOR(1+(ROW()-7)/4,1)>COUNTIF(Заказ,$E$3),\"\",INDEX(Количество,SMALL(IF(Заказ=$E$3,ROW(заказы[]),\"\"),FLOOR(1+(ROW()-7)/4,1))-ROW(заказы[#Headers]),))","v":11},"ед. по цене",null,null,{"$f":"IF(FLOOR(1+(ROW()-7)/4,1)>COUNTIF(Заказ,$E$3),\"\",INDEX(Цена2,SMALL(IF(Заказ=$E$3,ROW(заказы[]),\"\"),FLOOR(1+(ROW()-7)/4,1))-ROW(заказы[#Headers]),))","v":230},{"$f":"(FLOOR(1+(ROW()-7)/4,1)>COUNTIF(Заказ,$E$3))*((ROW()+2)<MATCH(\"яяя\",$B:$B))","v":0}]
[null,null,null,null,null,null,null,null,null,{"$f":"(FLOOR(1+(ROW()-7)/4,1)>COUNTIF(Заказ,$E$3))*((ROW()+2)<MATCH(\"яяя\",$B:$B))","v":0}]
[null,"Наименование товара",null,null,{"$f":"IF(FLOOR(1+(ROW()-7)/4,1)>COUNTIF(Заказ,$E$3),\"\",INDEX(Товар2,SMALL(IF(Заказ=$E$3,ROW(заказы[]),\"\"),FLOOR(1+(ROW()-7)/4,1))-ROW(заказы[#Headers]),))","v":"Яблоки \"Пинк леди\""},null,null,"№",{"$f":"IF(FLOOR(1+(ROW()-7)/4,1)>COUNTIF(Заказ,$E$3),\"\",INDEX(Номер2,SMALL(IF(Заказ=$E$3,ROW(заказы[]),\"\"),FLOOR(1+(ROW()-7)/4,1))-ROW(заказы[#Headers]),))","v":2},{"$f":"(FLOOR(1+(ROW()-7)/4,1)>COUNTIF(Заказ,$E$3))*((ROW()+2)<MATCH(\"яяя\",$B:$B))","v":0}]
[null,null,null,null,null,null,null,null,null,{"$f":"(FLOOR(1+(ROW()-7)/4,1)>COUNTIF(Заказ,$E$3))*((ROW()+2)<MATCH(\"яяя\",$B:$B))","v":0}]
[null,"Заказываемое количество",null,null,{"$f":"IF(FLOOR(1+(ROW()-7)/4,1)>COUNTIF(Заказ,$E$3),\"\",INDEX(Количество,SMALL(IF(Заказ=$E$3,ROW(заказы[]),\"\"),FLOOR(1+(ROW()-7)/4,1))-ROW(заказы[#Headers]),))","v":20},"ед. по цене",null,null,{"$f":"IF(FLOOR(1+(ROW()-7)/4,1)>COUNTIF(Заказ,$E$3),\"\",INDEX(Цена2,SMALL(IF(Заказ=$E$3,ROW(заказы[]),\"\"),FLOOR(1+(ROW()-7)/4,1))-ROW(заказы[#Headers]),))","v":102},{"$f":"(FLOOR(1+(ROW()-7)/4,1)>COUNTIF(Заказ,$E$3))*((ROW()+2)<MATCH(\"яяя\",$B:$B))","v":0}]
[null,null,null,null,null,null,null,null,null,{"$f":"(FLOOR(1+(ROW()-7)/4,1)>COUNTIF(Заказ,$E$3))*((ROW()+2)<MATCH(\"яяя\",$B:$B))","v":0}]
[null,"Наименование товара",null,null,{"$f":"IF(FLOOR(1+(ROW()-7)/4,1)>COUNTIF(Заказ,$E$3),\"\",INDEX(Товар2,SMALL(IF(Заказ=$E$3,ROW(заказы[]),\"\"),FLOOR(1+(ROW()-7)/4,1))-ROW(заказы[#Headers]),))","v":"Груши \"Дюшес\""},null,null,"№",{"$f":"IF(FLOOR(1+(ROW()-7)/4,1)>COUNTIF(Заказ,$E$3),\"\",INDEX(Номер2,SMALL(IF(Заказ=$E$3,ROW(заказы[]),\"\"),FLOOR(1+(ROW()-7)/4,1))-ROW(заказы[#Headers]),))","v":3},{"$f":"(FLOOR(1+(ROW()-7)/4,1)>COUNTIF(Заказ,$E$3))*((ROW()+2)<MATCH(\"яяя\",$B:$B))","v":0}]
[null,null,null,null,null,null,null,null,null,{"$f":"(FLOOR(1+(ROW()-7)/4,1)>COUNTIF(Заказ,$E$3))*((ROW()+2)<MATCH(\"яяя\",$B:$B))","v":0}]
[null,"Заказываемое количество",null,null,{"$f":"IF(FLOOR(1+(ROW()-7)/4,1)>COUNTIF(Заказ,$E$3),\"\",INDEX(Количество,SMALL(IF(Заказ=$E$3,ROW(заказы[]),\"\"),FLOOR(1+(ROW()-7)/4,1))-ROW(заказы[#Headers]),))","v":30},"ед. по цене",null,null,{"$f":"IF(FLOOR(1+(ROW()-7)/4,1)>COUNTIF(Заказ,$E$3),\"\",INDEX(Цена2,SMALL(IF(Заказ=$E$3,ROW(заказы[]),\"\"),FLOOR(1+(ROW()-7)/4,1))-ROW(заказы[#Headers]),))","v":115},{"$f":"(FLOOR(1+(ROW()-7)/4,1)>COUNTIF(Заказ,$E$3))*((ROW()+2)<MATCH(\"яяя\",$B:$B))","v":0}]
[null,null,null,null,null,null,null,null,null,{"$f":"(FLOOR(1+(ROW()-7)/4,1)>COUNTIF(Заказ,$E$3))*((ROW()+2)<MATCH(\"яяя\",$B:$B))","v":0}]
[null,"Наименование товара",null,null,{"$f":"IF(FLOOR(1+(ROW()-7)/4,1)>COUNTIF(Заказ,$E$3),\"\",INDEX(Товар2,SMALL(IF(Заказ=$E$3,ROW(заказы[]),\"\"),FLOOR(1+(ROW()-7)/4,1))-ROW(заказы[#Headers]),))","v":""},null,null,"№",{"$f":"IF(FLOOR(1+(ROW()-7)/4,1)>COUNTIF(Заказ,$E$3),\"\",INDEX(Номер2,SMALL(IF(Заказ=$E$3,ROW(заказы[]),\"\"),FLOOR(1+(ROW()-7)/4,1))-ROW(заказы[#Headers]),))","v":""},{"$f":"(FLOOR(1+(ROW()-7)/4,1)>COUNTIF(Заказ,$E$3))*((ROW()+2)<MATCH(\"яяя\",$B:$B))","v":1}]
[null,null,null,null,null,null,null,null,null,{"$f":"(FLOOR(1+(ROW()-7)/4,1)>COUNTIF(Заказ,$E$3))*((ROW()+2)<MATCH(\"яяя\",$B:$B))","v":1}]
[null,"Заказываемое количество",null,null,{"$f":"IF(FLOOR(1+(ROW()-7)/4,1)>COUNTIF(Заказ,$E$3),\"\",INDEX(Количество,SMALL(IF(Заказ=$E$3,ROW(заказы[]),\"\"),FLOOR(1+(ROW()-7)/4,1))-ROW(заказы[#Headers]),))","v":""},"ед. по цене",null,null,{"$f":"IF(FLOOR(1+(ROW()-7)/4,1)>COUNTIF(Заказ,$E$3),\"\",INDEX(Цена2,SMALL(IF(Заказ=$E$3,ROW(заказы[]),\"\"),FLOOR(1+(ROW()-7)/4,1))-ROW(заказы[#Headers]),))","v":""},{"$f":"(FLOOR(1+(ROW()-7)/4,1)>COUNTIF(Заказ,$E$3))*((ROW()+2)<MATCH(\"яяя\",$B:$B))","v":1}]
[null,null,null,null,null,null,null,null,null,{"$f":"(FLOOR(1+(ROW()-7)/4,1)>COUNTIF(Заказ,$E$3))*((ROW()+2)<MATCH(\"яяя\",$B:$B))","v":1}]
[null,"Наименование товара",null,null,{"$f":"IF(FLOOR(1+(ROW()-7)/4,1)>COUNTIF(Заказ,$E$3),\"\",INDEX(Товар2,SMALL(IF(Заказ=$E$3,ROW(заказы[]),\"\"),FLOOR(1+(ROW()-7)/4,1))-ROW(заказы[#Headers]),))","v":""},null,null,"№",{"$f":"IF(FLOOR(1+(ROW()-7)/4,1)>COUNTIF(Заказ,$E$3),\"\",INDEX(Номер2,SMALL(IF(Заказ=$E$3,ROW(заказы[]),\"\"),FLOOR(1+(ROW()-7)/4,1))-ROW(заказы[#Headers]),))","v":""},{"$f":"(FLOOR(1+(ROW()-7)/4,1)>COUNTIF(Заказ,$E$3))*((ROW()+2)<MATCH(\"яяя\",$B:$B))","v":1}]
[null,null,null,null,null,null,null,null,null,{"$f":"(FLOOR(1+(ROW()-7)/4,1)>COUNTIF(Заказ,$E$3))*((ROW()+2)<MATCH(\"яяя\",$B:$B))","v":1}]
[null,"Заказываемое количество",null,null,{"$f":"IF(FLOOR(1+(ROW()-7)/4,1)>COUNTIF(Заказ,$E$3),\"\",INDEX(Количество,SMALL(IF(Заказ=$E$3,ROW(заказы[]),\"\"),FLOOR(1+(ROW()-7)/4,1))-ROW(заказы[#Headers]),))","v":""},"ед. по цене",null,null,{"$f":"IF(FLOOR(1+(ROW()-7)/4,1)>COUNTIF(Заказ,$E$3),\"\",INDEX(Цена2,SMALL(IF(Заказ=$E$3,ROW(заказы[]),\"\"),FLOOR(1+(ROW()-7)/4,1))-ROW(заказы[#Headers]),))","v":""},{"$f":"(FLOOR(1+(ROW()-7)/4,1)>COUNTIF(Заказ,$E$3))*((ROW()+2)<MATCH(\"яяя\",$B:$B))","v":1}]
[null,null,null,null,null,null,null,null,null,{"$f":"(FLOOR(1+(ROW()-7)/4,1)>COUNTIF(Заказ,$E$3))*((ROW()+2)<MATCH(\"яяя\",$B:$B))","v":1}]
[null,"Наименование товара",null,null,{"$f":"IF(FLOOR(1+(ROW()-7)/4,1)>COUNTIF(Заказ,$E$3),\"\",INDEX(Товар2,SMALL(IF(Заказ=$E$3,ROW(заказы[]),\"\"),FLOOR(1+(ROW()-7)/4,1))-ROW(заказы[#Headers]),))","v":""},null,null,"№",{"$f":"IF(FLOOR(1+(ROW()-7)/4,1)>COUNTIF(Заказ,$E$3),\"\",INDEX(Номер2,SMALL(IF(Заказ=$E$3,ROW(заказы[]),\"\"),FLOOR(1+(ROW()-7)/4,1))-ROW(заказы[#Headers]),))","v":""},{"$f":"(FLOOR(1+(ROW()-7)/4,1)>COUNTIF(Заказ,$E$3))*((ROW()+2)<MATCH(\"яяя\",$B:$B))","v":1}]
[null,null,null,null,null,null,null,null,null,{"$f":"(FLOOR(1+(ROW()-7)/4,1)>COUNTIF(Заказ,$E$3))*((ROW()+2)<MATCH(\"яяя\",$B:$B))","v":1}]
[null,"Заказываемое количество",null,null,{"$f":"IF(FLOOR(1+(ROW()-7)/4,1)>COUNTIF(Заказ,$E$3),\"\",INDEX(Количество,SMALL(IF(Заказ=$E$3,ROW(заказы[]),\"\"),FLOOR(1+(ROW()-7)/4,1))-ROW(заказы[#Headers]),))","v":""},"ед. по цене",null,null,{"$f":"IF(FLOOR(1+(ROW()-7)/4,1)>COUNTIF(Заказ,$E$3),\"\",INDEX(Цена2,SMALL(IF(Заказ=$E$3,ROW(заказы[]),\"\"),FLOOR(1+(ROW()-7)/4,1))-ROW(заказы[#Headers]),))","v":""},{"$f":"(FLOOR(1+(ROW()-7)/4,1)>COUNTIF(Заказ,$E$3))*((ROW()+2)<MATCH(\"яяя\",$B:$B))","v":1}]
[null,null,null,null,null,null,null,null,null,{"$f":"(FLOOR(1+(ROW()-7)/4,1)>COUNTIF(Заказ,$E$3))*((ROW()+2)<MATCH(\"яяя\",$B:$B))","v":1}]
[null,"Наименование товара",null,null,{"$f":"IF(FLOOR(1+(ROW()-7)/4,1)>COUNTIF(Заказ,$E$3),\"\",INDEX(Товар2,SMALL(IF(Заказ=$E$3,ROW(заказы[]),\"\"),FLOOR(1+(ROW()-7)/4,1))-ROW(заказы[#Headers]),))","v":""},null,null,"№",{"$f":"IF(FLOOR(1+(ROW()-7)/4,1)>COUNTIF(Заказ,$E$3),\"\",INDEX(Номер2,SMALL(IF(Заказ=$E$3,ROW(заказы[]),\"\"),FLOOR(1+(ROW()-7)/4,1))-ROW(заказы[#Headers]),))","v":""},{"$f":"(FLOOR(1+(ROW()-7)/4,1)>COUNTIF(Заказ,$E$3))*((ROW()+2)<MATCH(\"яяя\",$B:$B))","v":1}]
[null,null,null,null,null,null,null,null,null,{"$f":"(FLOOR(1+(ROW()-7)/4,1)>COUNTIF(Заказ,$E$3))*((ROW()+2)<MATCH(\"яяя\",$B:$B))","v":1}]
[null,"Заказываемое количество",null,null,{"$f":"IF(FLOOR(1+(ROW()-7)/4,1)>COUNTIF(Заказ,$E$3),\"\",INDEX(Количество,SMALL(IF(Заказ=$E$3,ROW(заказы[]),\"\"),FLOOR(1+(ROW()-7)/4,1))-ROW(заказы[#Headers]),))","v":""},"ед. по цене",null,null,{"$f":"IF(FLOOR(1+(ROW()-7)/4,1)>COUNTIF(Заказ,$E$3),\"\",INDEX(Цена2,SMALL(IF(Заказ=$E$3,ROW(заказы[]),\"\"),FLOOR(1+(ROW()-7)/4,1))-ROW(заказы[#Headers]),))","v":""},{"$f":"(FLOOR(1+(ROW()-7)/4,1)>COUNTIF(Заказ,$E$3))*((ROW()+2)<MATCH(\"яяя\",$B:$B))","v":1}]
[null,null,null,null,null,null,null,null,null,{"$f":"(FLOOR(1+(ROW()-7)/4,1)>COUNTIF(Заказ,$E$3))*((ROW()+2)<MATCH(\"яяя\",$B:$B))","v":1}]
[null,"Наименование товара",null,null,{"$f":"IF(FLOOR(1+(ROW()-7)/4,1)>COUNTIF(Заказ,$E$3),\"\",INDEX(Товар2,SMALL(IF(Заказ=$E$3,ROW(заказы[]),\"\"),FLOOR(1+(ROW()-7)/4,1))-ROW(заказы[#Headers]),))","v":""},null,null,"№",{"$f":"IF(FLOOR(1+(ROW()-7)/4,1)>COUNTIF(Заказ,$E$3),\"\",INDEX(Номер2,SMALL(IF(Заказ=$E$3,ROW(заказы[]),\"\"),FLOOR(1+(ROW()-7)/4,1))-ROW(заказы[#Headers]),))","v":""},{"$f":"(FLOOR(1+(ROW()-7)/4,1)>COUNTIF(Заказ,$E$3))*((ROW()+2)<MATCH(\"яяя\",$B:$B))","v":1}]
[null,null,null,null,null,null,null,null,null,{"$f":"(FLOOR(1+(ROW()-7)/4,1)>COUNTIF(Заказ,$E$3))*((ROW()+2)<MATCH(\"яяя\",$B:$B))","v":1}]
[null,"Заказываемое количество",null,null,{"$f":"IF(FLOOR(1+(ROW()-7)/4,1)>COUNTIF(Заказ,$E$3),\"\",INDEX(Количество,SMALL(IF(Заказ=$E$3,ROW(заказы[]),\"\"),FLOOR(1+(ROW()-7)/4,1))-ROW(заказы[#Headers]),))","v":""},"ед. по цене",null,null,{"$f":"IF(FLOOR(1+(ROW()-7)/4,1)>COUNTIF(Заказ,$E$3),\"\",INDEX(Цена2,SMALL(IF(Заказ=$E$3,ROW(заказы[]),\"\"),FLOOR(1+(ROW()-7)/4,1))-ROW(заказы[#Headers]),))","v":""},{"$f":"(FLOOR(1+(ROW()-7)/4,1)>COUNTIF(Заказ,$E$3))*((ROW()+2)<MATCH(\"яяя\",$B:$B))","v":1}]
[null,null,null,null,null,null,null,null,null,{"$f":"(FLOOR(1+(ROW()-7)/4,1)>COUNTIF(Заказ,$E$3))*((ROW()+2)<MATCH(\"яяя\",$B:$B))","v":1}]
[null,"Наименование товара",null,null,{"$f":"IF(FLOOR(1+(ROW()-7)/4,1)>COUNTIF(Заказ,$E$3),\"\",INDEX(Товар2,SMALL(IF(Заказ=$E$3,ROW(заказы[]),\"\"),FLOOR(1+(ROW()-7)/4,1))-ROW(заказы[#Headers]),))","v":""},null,null,"№",{"$f":"IF(FLOOR(1+(ROW()-7)/4,1)>COUNTIF(Заказ,$E$3),\"\",INDEX(Номер2,SMALL(IF(Заказ=$E$3,ROW(заказы[]),\"\"),FLOOR(1+(ROW()-7)/4,1))-ROW(заказы[#Headers]),))","v":""},{"$f":"(FLOOR(1+(ROW()-7)/4,1)>COUNTIF(Заказ,$E$3))*((ROW()+2)<MATCH(\"яяя\",$B:$B))","v":1}]
[null,null,null,null,null,null,null,null,null,{"$f":"(FLOOR(1+(ROW()-7)/4,1)>COUNTIF(Заказ,$E$3))*((ROW()+2)<MATCH(\"яяя\",$B:$B))","v":1}]
[null,"Заказываемое количество",null,null,{"$f":"IF(FLOOR(1+(ROW()-7)/4,1)>COUNTIF(Заказ,$E$3),\"\",INDEX(Количество,SMALL(IF(Заказ=$E$3,ROW(заказы[]),\"\"),FLOOR(1+(ROW()-7)/4,1))-ROW(заказы[#Headers]),))","v":""},"ед. по цене",null,null,{"$f":"IF(FLOOR(1+(ROW()-7)/4,1)>COUNTIF(Заказ,$E$3),\"\",INDEX(Цена2,SMALL(IF(Заказ=$E$3,ROW(заказы[]),\"\"),FLOOR(1+(ROW()-7)/4,1))-ROW(заказы[#Headers]),))","v":""},{"$f":"(FLOOR(1+(ROW()-7)/4,1)>COUNTIF(Заказ,$E$3))*((ROW()+2)<MATCH(\"яяя\",$B:$B))","v":1}]
[null,null,null,null,null,null,null,null,null,{"$f":"(FLOOR(1+(ROW()-7)/4,1)>COUNTIF(Заказ,$E$3))*((ROW()+2)<MATCH(\"яяя\",$B:$B))","v":1}]
[null,"Наименование товара",null,null,{"$f":"IF(FLOOR(1+(ROW()-7)/4,1)>COUNTIF(Заказ,$E$3),\"\",INDEX(Товар2,SMALL(IF(Заказ=$E$3,ROW(заказы[]),\"\"),FLOOR(1+(ROW()-7)/4,1))-ROW(заказы[#Headers]),))","v":""},null,null,"№",{"$f":"IF(FLOOR(1+(ROW()-7)/4,1)>COUNTIF(Заказ,$E$3),\"\",INDEX(Номер2,SMALL(IF(Заказ=$E$3,ROW(заказы[]),\"\"),FLOOR(1+(ROW()-7)/4,1))-ROW(заказы[#Headers]),))","v":""},{"$f":"(FLOOR(1+(ROW()-7)/4,1)>COUNTIF(Заказ,$E$3))*((ROW()+2)<MATCH(\"яяя\",$B:$B))","v":1}]
[null,null,null,null,null,null,null,null,null,{"$f":"(FLOOR(1+(ROW()-7)/4,1)>COUNTIF(Заказ,$E$3))*((ROW()+2)<MATCH(\"яяя\",$B:$B))","v":1}]
[null,"Заказываемое количество",null,null,{"$f":"IF(FLOOR(1+(ROW()-7)/4,1)>COUNTIF(Заказ,$E$3),\"\",INDEX(Количество,SMALL(IF(Заказ=$E$3,ROW(заказы[]),\"\"),FLOOR(1+(ROW()-7)/4,1))-ROW(заказы[#Headers]),))","v":""},"ед. по цене",null,null,{"$f":"IF(FLOOR(1+(ROW()-7)/4,1)>COUNTIF(Заказ,$E$3),\"\",INDEX(Цена2,SMALL(IF(Заказ=$E$3,ROW(заказы[]),\"\"),FLOOR(1+(ROW()-7)/4,1))-ROW(заказы[#Headers]),))","v":""},{"$f":"(FLOOR(1+(ROW()-7)/4,1)>COUNTIF(Заказ,$E$3))*((ROW()+2)<MATCH(\"яяя\",$B:$B))","v":1}]
[null,null,null,null,null,null,null,null,null,{"$f":"(FLOOR(1+(ROW()-7)/4,1)>COUNTIF(Заказ,$E$3))*((ROW()+2)<MATCH(\"яяя\",$B:$B))","v":1}]
[null,"Наименование товара",null,null,{"$f":"IF(FLOOR(1+(ROW()-7)/4,1)>COUNTIF(Заказ,$E$3),\"\",INDEX(Товар2,SMALL(IF(Заказ=$E$3,ROW(заказы[]),\"\"),FLOOR(1+(ROW()-7)/4,1))-ROW(заказы[#Headers]),))","v":""},null,null,"№",{"$f":"IF(FLOOR(1+(ROW()-7)/4,1)>COUNTIF(Заказ,$E$3),\"\",INDEX(Номер2,SMALL(IF(Заказ=$E$3,ROW(заказы[]),\"\"),FLOOR(1+(ROW()-7)/4,1))-ROW(заказы[#Headers]),))","v":""},{"$f":"(FLOOR(1+(ROW()-7)/4,1)>COUNTIF(Заказ,$E$3))*((ROW()+2)<MATCH(\"яяя\",$B:$B))","v":1}]
[null,null,null,null,null,null,null,null,null,{"$f":"(FLOOR(1+(ROW()-7)/4,1)>COUNTIF(Заказ,$E$3))*((ROW()+2)<MATCH(\"яяя\",$B:$B))","v":1}]
[null,"Заказываемое количество",null,null,{"$f":"IF(FLOOR(1+(ROW()-7)/4,1)>COUNTIF(Заказ,$E$3),\"\",INDEX(Количество,SMALL(IF(Заказ=$E$3,ROW(заказы[]),\"\"),FLOOR(1+(ROW()-7)/4,1))-ROW(заказы[#Headers]),))","v":""},"ед. по цене",null,null,{"$f":"IF(FLOOR(1+(ROW()-7)/4,1)>COUNTIF(Заказ,$E$3),\"\",INDEX(Цена2,SMALL(IF(Заказ=$E$3,ROW(заказы[]),\"\"),FLOOR(1+(ROW()-7)/4,1))-ROW(заказы[#Headers]),))","v":""},{"$f":"(FLOOR(1+(ROW()-7)/4,1)>COUNTIF(Заказ,$E$3))*((ROW()+2)<MATCH(\"яяя\",$B:$B))","v":1}]
[null,null,null,null,null,null,null,null,null,{"$f":"(FLOOR(1+(ROW()-7)/4,1)>COUNTIF(Заказ,$E$3))*((ROW()+2)<MATCH(\"яяя\",$B:$B))","v":1}]
[null,"Наименование товара",null,null,{"$f":"IF(FLOOR(1+(ROW()-7)/4,1)>COUNTIF(Заказ,$E$3),\"\",INDEX(Товар2,SMALL(IF(Заказ=$E$3,ROW(заказы[]),\"\"),FLOOR(1+(ROW()-7)/4,1))-ROW(заказы[#Headers]),))","v":""},null,null,"№",{"$f":"IF(FLOOR(1+(ROW()-7)/4,1)>COUNTIF(Заказ,$E$3),\"\",INDEX(Номер2,SMALL(IF(Заказ=$E$3,ROW(заказы[]),\"\"),FLOOR(1+(ROW()-7)/4,1))-ROW(заказы[#Headers]),))","v":""},{"$f":"(FLOOR(1+(ROW()-7)/4,1)>COUNTIF(Заказ,$E$3))*((ROW()+2)<MATCH(\"яяя\",$B:$B))","v":1}]
[null,null,null,null,null,null,null,null,null,{"$f":"(FLOOR(1+(ROW()-7)/4,1)>COUNTIF(Заказ,$E$3))*((ROW()+2)<MATCH(\"яяя\",$B:$B))","v":1}]
[null,"Заказываемое количество",null,null,{"$f":"IF(FLOOR(1+(ROW()-7)/4,1)>COUNTIF(Заказ,$E$3),\"\",INDEX(Количество,SMALL(IF(Заказ=$E$3,ROW(заказы[]),\"\"),FLOOR(1+(ROW()-7)/4,1))-ROW(заказы[#Headers]),))","v":""},"ед. по цене",null,null,{"$f":"IF(FLOOR(1+(ROW()-7)/4,1)>COUNTIF(Заказ,$E$3),\"\",INDEX(Цена2,SMALL(IF(Заказ=$E$3,ROW(заказы[]),\"\"),FLOOR(1+(ROW()-7)/4,1))-ROW(заказы[#Headers]),))","v":""},{"$f":"(FLOOR(1+(ROW()-7)/4,1)>COUNTIF(Заказ,$E$3))*((ROW()+2)<MATCH(\"яяя\",$B:$B))","v":1}]
[null,null,null,null,null,null,null,null,null,{"$f":"(FLOOR(1+(ROW()-7)/4,1)>COUNTIF(Заказ,$E$3))*((ROW()+2)<MATCH(\"яяя\",$B:$B))","v":1}]
[null,"Наименование товара",null,null,{"$f":"IF(FLOOR(1+(ROW()-7)/4,1)>COUNTIF(Заказ,$E$3),\"\",INDEX(Товар2,SMALL(IF(Заказ=$E$3,ROW(заказы[]),\"\"),FLOOR(1+(ROW()-7)/4,1))-ROW(заказы[#Headers]),))","v":""},null,null,"№",{"$f":"IF(FLOOR(1+(ROW()-7)/4,1)>COUNTIF(Заказ,$E$3),\"\",INDEX(Номер2,SMALL(IF(Заказ=$E$3,ROW(заказы[]),\"\"),FLOOR(1+(ROW()-7)/4,1))-ROW(заказы[#Headers]),))","v":""},{"$f":"(FLOOR(1+(ROW()-7)/4,1)>COUNTIF(Заказ,$E$3))*((ROW()+2)<MATCH(\"яяя\",$B:$B))","v":1}]
[null,null,null,null,null,null,null,null,null,{"$f":"(FLOOR(1+(ROW()-7)/4,1)>COUNTIF(Заказ,$E$3))*((ROW()+2)<MATCH(\"яяя\",$B:$B))","v":1}]
[null,"Заказываемое количество",null,null,{"$f":"IF(FLOOR(1+(ROW()-7)/4,1)>COUNTIF(Заказ,$E$3),\"\",INDEX(Количество,SMALL(IF(Заказ=$E$3,ROW(заказы[]),\"\"),FLOOR(1+(ROW()-7)/4,1))-ROW(заказы[#Headers]),))","v":""},"ед. по цене",null,null,{"$f":"IF(FLOOR(1+(ROW()-7)/4,1)>COUNTIF(Заказ,$E$3),\"\",INDEX(Цена2,SMALL(IF(Заказ=$E$3,ROW(заказы[]),\"\"),FLOOR(1+(ROW()-7)/4,1))-ROW(заказы[#Headers]),))","v":""},{"$f":"(FLOOR(1+(ROW()-7)/4,1)>COUNTIF(Заказ,$E$3))*((ROW()+2)<MATCH(\"яяя\",$B:$B))","v":1}]
[null,null,null,null,null,null,null,null,null,{"$f":"(FLOOR(1+(ROW()-7)/4,1)>COUNTIF(Заказ,$E$3))*((ROW()+2)<MATCH(\"яяя\",$B:$B))","v":1}]
[null,"Наименование товара",null,null,{"$f":"IF(FLOOR(1+(ROW()-7)/4,1)>COUNTIF(Заказ,$E$3),\"\",INDEX(Товар2,SMALL(IF(Заказ=$E$3,ROW(заказы[]),\"\"),FLOOR(1+(ROW()-7)/4,1))-ROW(заказы[#Headers]),))","v":""},null,null,"№",{"$f":"IF(FLOOR(1+(ROW()-7)/4,1)>COUNTIF(Заказ,$E$3),\"\",INDEX(Номер2,SMALL(IF(Заказ=$E$3,ROW(заказы[]),\"\"),FLOOR(1+(ROW()-7)/4,1))-ROW(заказы[#Headers]),))","v":""},{"$f":"(FLOOR(1+(ROW()-7)/4,1)>COUNTIF(Заказ,$E$3))*((ROW()+2)<MATCH(\"яяя\",$B:$B))","v":1}]
[null,null,null,null,null,null,null,null,null,{"$f":"(FLOOR(1+(ROW()-7)/4,1)>COUNTIF(Заказ,$E$3))*((ROW()+2)<MATCH(\"яяя\",$B:$B))","v":1}]
[null,"Заказываемое количество",null,null,{"$f":"IF(FLOOR(1+(ROW()-7)/4,1)>COUNTIF(Заказ,$E$3),\"\",INDEX(Количество,SMALL(IF(Заказ=$E$3,ROW(заказы[]),\"\"),FLOOR(1+(ROW()-7)/4,1))-ROW(заказы[#Headers]),))","v":""},"ед. по цене",null,null,{"$f":"IF(FLOOR(1+(ROW()-7)/4,1)>COUNTIF(Заказ,$E$3),\"\",INDEX(Цена2,SMALL(IF(Заказ=$E$3,ROW(заказы[]),\"\"),FLOOR(1+(ROW()-7)/4,1))-ROW(заказы[#Headers]),))","v":""},{"$f":"(FLOOR(1+(ROW()-7)/4,1)>COUNTIF(Заказ,$E$3))*((ROW()+2)<MATCH(\"яяя\",$B:$B))","v":1}]
[null,null,null,null,null,null,null,null,null,{"$f":"(FLOOR(1+(ROW()-7)/4,1)>COUNTIF(Заказ,$E$3))*((ROW()+2)<MATCH(\"яяя\",$B:$B))","v":1}]
[null,"Наименование товара",null,null,{"$f":"IF(FLOOR(1+(ROW()-7)/4,1)>COUNTIF(Заказ,$E$3),\"\",INDEX(Товар2,SMALL(IF(Заказ=$E$3,ROW(заказы[]),\"\"),FLOOR(1+(ROW()-7)/4,1))-ROW(заказы[#Headers]),))","v":""},null,null,"№",{"$f":"IF(FLOOR(1+(ROW()-7)/4,1)>COUNTIF(Заказ,$E$3),\"\",INDEX(Номер2,SMALL(IF(Заказ=$E$3,ROW(заказы[]),\"\"),FLOOR(1+(ROW()-7)/4,1))-ROW(заказы[#Headers]),))","v":""},{"$f":"(FLOOR(1+(ROW()-7)/4,1)>COUNTIF(Заказ,$E$3))*((ROW()+2)<MATCH(\"яяя\",$B:$B))","v":1}]
[null,null,null,null,null,null,null,null,null,{"$f":"(FLOOR(1+(ROW()-7)/4,1)>COUNTIF(Заказ,$E$3))*((ROW()+2)<MATCH(\"яяя\",$B:$B))","v":1}]
[null,"Заказываемое количество",null,null,{"$f":"IF(FLOOR(1+(ROW()-7)/4,1)>COUNTIF(Заказ,$E$3),\"\",INDEX(Количество,SMALL(IF(Заказ=$E$3,ROW(заказы[]),\"\"),FLOOR(1+(ROW()-7)/4,1))-ROW(заказы[#Headers]),))","v":""},"ед. по цене",null,null,{"$f":"IF(FLOOR(1+(ROW()-7)/4,1)>COUNTIF(Заказ,$E$3),\"\",INDEX(Цена2,SMALL(IF(Заказ=$E$3,ROW(заказы[]),\"\"),FLOOR(1+(ROW()-7)/4,1))-ROW(заказы[#Headers]),))","v":""},{"$f":"(FLOOR(1+(ROW()-7)/4,1)>COUNTIF(Заказ,$E$3))*((ROW()+2)<MATCH(\"яяя\",$B:$B))","v":1}]
[null,null,null,null,null,null,null,null,null,{"$f":"(FLOOR(1+(ROW()-7)/4,1)>COUNTIF(Заказ,$E$3))*((ROW()+2)<MATCH(\"яяя\",$B:$B))","v":1}]
[null,"Наименование товара",null,null,{"$f":"IF(FLOOR(1+(ROW()-7)/4,1)>COUNTIF(Заказ,$E$3),\"\",INDEX(Товар2,SMALL(IF(Заказ=$E$3,ROW(заказы[]),\"\"),FLOOR(1+(ROW()-7)/4,1))-ROW(заказы[#Headers]),))","v":""},null,null,"№",{"$f":"IF(FLOOR(1+(ROW()-7)/4,1)>COUNTIF(Заказ,$E$3),\"\",INDEX(Номер2,SMALL(IF(Заказ=$E$3,ROW(заказы[]),\"\"),FLOOR(1+(ROW()-7)/4,1))-ROW(заказы[#Headers]),))","v":""},{"$f":"(FLOOR(1+(ROW()-7)/4,1)>COUNTIF(Заказ,$E$3))*((ROW()+2)<MATCH(\"яяя\",$B:$B))","v":1}]
[null,null,null,null,null,null,null,null,null,{"$f":"(FLOOR(1+(ROW()-7)/4,1)>COUNTIF(Заказ,$E$3))*((ROW()+2)<MATCH(\"яяя\",$B:$B))","v":1}]
[null,"Заказываемое количество",null,null,{"$f":"IF(FLOOR(1+(ROW()-7)/4,1)>COUNTIF(Заказ,$E$3),\"\",INDEX(Количество,SMALL(IF(Заказ=$E$3,ROW(заказы[]),\"\"),FLOOR(1+(ROW()-7)/4,1))-ROW(заказы[#Headers]),))","v":""},"ед. по цене",null,null,{"$f":"IF(FLOOR(1+(ROW()-7)/4,1)>COUNTIF(Заказ,$E$3),\"\",INDEX(Цена2,SMALL(IF(Заказ=$E$3,ROW(заказы[]),\"\"),FLOOR(1+(ROW()-7)/4,1))-ROW(заказы[#Headers]),))","v":""},{"$f":"(FLOOR(1+(ROW()-7)/4,1)>COUNTIF(Заказ,$E$3))*((ROW()+2)<MATCH(\"яяя\",$B:$B))","v":1}]
[null,null,null,null,null,null,null,null,null,{"$f":"(FLOOR(1+(ROW()-7)/4,1)>COUNTIF(Заказ,$E$3))*((ROW()+2)<MATCH(\"яяя\",$B:$B))","v":1}]
[null,"Наименование товара",null,null,{"$f":"IF(FLOOR(1+(ROW()-7)/4,1)>COUNTIF(Заказ,$E$3),\"\",INDEX(Товар2,SMALL(IF(Заказ=$E$3,ROW(заказы[]),\"\"),FLOOR(1+(ROW()-7)/4,1))-ROW(заказы[#Headers]),))","v":""},null,null,"№",{"$f":"IF(FLOOR(1+(ROW()-7)/4,1)>COUNTIF(Заказ,$E$3),\"\",INDEX(Номер2,SMALL(IF(Заказ=$E$3,ROW(заказы[]),\"\"),FLOOR(1+(ROW()-7)/4,1))-ROW(заказы[#Headers]),))","v":""},{"$f":"(FLOOR(1+(ROW()-7)/4,1)>COUNTIF(Заказ,$E$3))*((ROW()+2)<MATCH(\"яяя\",$B:$B))","v":1}]
[null,null,null,null,null,null,null,null,null,{"$f":"(FLOOR(1+(ROW()-7)/4,1)>COUNTIF(Заказ,$E$3))*((ROW()+2)<MATCH(\"яяя\",$B:$B))","v":1}]
[null,"Заказываемое количество",null,null,{"$f":"IF(FLOOR(1+(ROW()-7)/4,1)>COUNTIF(Заказ,$E$3),\"\",INDEX(Количество,SMALL(IF(Заказ=$E$3,ROW(заказы[]),\"\"),FLOOR(1+(ROW()-7)/4,1))-ROW(заказы[#Headers]),))","v":""},"ед. по цене",null,null,{"$f":"IF(FLOOR(1+(ROW()-7)/4,1)>COUNTIF(Заказ,$E$3),\"\",INDEX(Цена2,SMALL(IF(Заказ=$E$3,ROW(заказы[]),\"\"),FLOOR(1+(ROW()-7)/4,1))-ROW(заказы[#Headers]),))","v":""},{"$f":"(FLOOR(1+(ROW()-7)/4,1)>COUNTIF(Заказ,$E$3))*((ROW()+2)<MATCH(\"яяя\",$B:$B))","v":1}]
[null,null,null,null,null,null,null,null,null,{"$f":"(FLOOR(1+(ROW()-7)/4,1)>COUNTIF(Заказ,$E$3))*((ROW()+2)<MATCH(\"яяя\",$B:$B))","v":1}]
[null,"Наименование товара",null,null,{"$f":"IF(FLOOR(1+(ROW()-7)/4,1)>COUNTIF(Заказ,$E$3),\"\",INDEX(Товар2,SMALL(IF(Заказ=$E$3,ROW(заказы[]),\"\"),FLOOR(1+(ROW()-7)/4,1))-ROW(заказы[#Headers]),))","v":""},null,null,"№",{"$f":"IF(FLOOR(1+(ROW()-7)/4,1)>COUNTIF(Заказ,$E$3),\"\",INDEX(Номер2,SMALL(IF(Заказ=$E$3,ROW(заказы[]),\"\"),FLOOR(1+(ROW()-7)/4,1))-ROW(заказы[#Headers]),))","v":""},{"$f":"(FLOOR(1+(ROW()-7)/4,1)>COUNTIF(Заказ,$E$3))*((ROW()+2)<MATCH(\"яяя\",$B:$B))","v":1}]
[null,null,null,null,null,null,null,null,null,{"$f":"(FLOOR(1+(ROW()-7)/4,1)>COUNTIF(Заказ,$E$3))*((ROW()+2)<MATCH(\"яяя\",$B:$B))","v":1}]
[null,"Заказываемое количество",null,null,{"$f":"IF(FLOOR(1+(ROW()-7)/4,1)>COUNTIF(Заказ,$E$3),\"\",INDEX(Количество,SMALL(IF(Заказ=$E$3,ROW(заказы[]),\"\"),FLOOR(1+(ROW()-7)/4,1))-ROW(заказы[#Headers]),))","v":""},"ед. по цене",null,null,{"$f":"IF(FLOOR(1+(ROW()-7)/4,1)>COUNTIF(Заказ,$E$3),\"\",INDEX(Цена2,SMALL(IF(Заказ=$E$3,ROW(заказы[]),\"\"),FLOOR(1+(ROW()-7)/4,1))-ROW(заказы[#Headers]),))","v":""},{"$f":"(FLOOR(1+(ROW()-7)/4,1)>COUNTIF(Заказ,$E$3))*((ROW()+2)<MATCH(\"яяя\",$B:$B))","v":1}]
[null,null,null,null,null,null,null,null,null,{"$f":"(FLOOR(1+(ROW()-7)/4,1)>COUNTIF(Заказ,$E$3))*((ROW()+2)<MATCH(\"яяя\",$B:$B))","v":1}]
[null,"Наименование товара",null,null,{"$f":"IF(FLOOR(1+(ROW()-7)/4,1)>COUNTIF(Заказ,$E$3),\"\",INDEX(Товар2,SMALL(IF(Заказ=$E$3,ROW(заказы[]),\"\"),FLOOR(1+(ROW()-7)/4,1))-ROW(заказы[#Headers]),))","v":""},null,null,"№",{"$f":"IF(FLOOR(1+(ROW()-7)/4,1)>COUNTIF(Заказ,$E$3),\"\",INDEX(Номер2,SMALL(IF(Заказ=$E$3,ROW(заказы[]),\"\"),FLOOR(1+(ROW()-7)/4,1))-ROW(заказы[#Headers]),))","v":""},{"$f":"(FLOOR(1+(ROW()-7)/4,1)>COUNTIF(Заказ,$E$3))*((ROW()+2)<MATCH(\"яяя\",$B:$B))","v":1}]
[null,null,null,null,null,null,null,null,null,{"$f":"(FLOOR(1+(ROW()-7)/4,1)>COUNTIF(Заказ,$E$3))*((ROW()+2)<MATCH(\"яяя\",$B:$B))","v":1}]
[null,"Заказываемое количество",null,null,{"$f":"IF(FLOOR(1+(ROW()-7)/4,1)>COUNTIF(Заказ,$E$3),\"\",INDEX(Количество,SMALL(IF(Заказ=$E$3,ROW(заказы[]),\"\"),FLOOR(1+(ROW()-7)/4,1))-ROW(заказы[#Headers]),))","v":""},"ед. по цене",null,null,{"$f":"IF(FLOOR(1+(ROW()-7)/4,1)>COUNTIF(Заказ,$E$3),\"\",INDEX(Цена2,SMALL(IF(Заказ=$E$3,ROW(заказы[]),\"\"),FLOOR(1+(ROW()-7)/4,1))-ROW(заказы[#Headers]),))","v":""},{"$f":"(FLOOR(1+(ROW()-7)/4,1)>COUNTIF(Заказ,$E$3))*((ROW()+2)<MATCH(\"яяя\",$B:$B))","v":1}]
[null,null,null,null,null,null,null,null,null,{"$f":"(FLOOR(1+(ROW()-7)/4,1)>COUNTIF(Заказ,$E$3))*((ROW()+2)<MATCH(\"яяя\",$B:$B))","v":1}]
[null,"Наименование товара",null,null,{"$f":"IF(FLOOR(1+(ROW()-7)/4,1)>COUNTIF(Заказ,$E$3),\"\",INDEX(Товар2,SMALL(IF(Заказ=$E$3,ROW(заказы[]),\"\"),FLOOR(1+(ROW()-7)/4,1))-ROW(заказы[#Headers]),))","v":""},null,null,"№",{"$f":"IF(FLOOR(1+(ROW()-7)/4,1)>COUNTIF(Заказ,$E$3),\"\",INDEX(Номер2,SMALL(IF(Заказ=$E$3,ROW(заказы[]),\"\"),FLOOR(1+(ROW()-7)/4,1))-ROW(заказы[#Headers]),))","v":""},{"$f":"(FLOOR(1+(ROW()-7)/4,1)>COUNTIF(Заказ,$E$3))*((ROW()+2)<MATCH(\"яяя\",$B:$B))","v":1}]
[null,null,null,null,null,null,null,null,null,{"$f":"(FLOOR(1+(ROW()-7)/4,1)>COUNTIF(Заказ,$E$3))*((ROW()+2)<MATCH(\"яяя\",$B:$B))","v":1}]
[null,"Заказываемое количество",null,null,{"$f":"IF(FLOOR(1+(ROW()-7)/4,1)>COUNTIF(Заказ,$E$3),\"\",INDEX(Количество,SMALL(IF(Заказ=$E$3,ROW(заказы[]),\"\"),FLOOR(1+(ROW()-7)/4,1))-ROW(заказы[#Headers]),))","v":""},"ед. по цене",null,null,{"$f":"IF(FLOOR(1+(ROW()-7)/4,1)>COUNTIF(Заказ,$E$3),\"\",INDEX(Цена2,SMALL(IF(Заказ=$E$3,ROW(заказы[]),\"\"),FLOOR(1+(ROW()-7)/4,1))-ROW(заказы[#Headers]),))","v":""},{"$f":"(FLOOR(1+(ROW()-7)/4,1)>COUNTIF(Заказ,$E$3))*((ROW()+2)<MATCH(\"яяя\",$B:$B))","v":1}]
[null,null,null,null,null,null,null,null,null,{"$f":"(FLOOR(1+(ROW()-7)/4,1)>COUNTIF(Заказ,$E$3))*((ROW()+2)<MATCH(\"яяя\",$B:$B))","v":1}]
[null,"Наименование товара",null,null,{"$f":"IF(FLOOR(1+(ROW()-7)/4,1)>COUNTIF(Заказ,$E$3),\"\",INDEX(Товар2,SMALL(IF(Заказ=$E$3,ROW(заказы[]),\"\"),FLOOR(1+(ROW()-7)/4,1))-ROW(заказы[#Headers]),))","v":""},null,null,"№",{"$f":"IF(FLOOR(1+(ROW()-7)/4,1)>COUNTIF(Заказ,$E$3),\"\",INDEX(Номер2,SMALL(IF(Заказ=$E$3,ROW(заказы[]),\"\"),FLOOR(1+(ROW()-7)/4,1))-ROW(заказы[#Headers]),))","v":""},{"$f":"(FLOOR(1+(ROW()-7)/4,1)>COUNTIF(Заказ,$E$3))*((ROW()+2)<MATCH(\"яяя\",$B:$B))","v":1}]
[null,null,null,null,null,null,null,null,null,{"$f":"(FLOOR(1+(ROW()-7)/4,1)>COUNTIF(Заказ,$E$3))*((ROW()+2)<MATCH(\"яяя\",$B:$B))","v":1}]
[null,"Заказываемое количество",null,null,{"$f":"IF(FLOOR(1+(ROW()-7)/4,1)>COUNTIF(Заказ,$E$3),\"\",INDEX(Количество,SMALL(IF(Заказ=$E$3,ROW(заказы[]),\"\"),FLOOR(1+(ROW()-7)/4,1))-ROW(заказы[#Headers]),))","v":""},"ед. по цене",null,null,{"$f":"IF(FLOOR(1+(ROW()-7)/4,1)>COUNTIF(Заказ,$E$3),\"\",INDEX(Цена2,SMALL(IF(Заказ=$E$3,ROW(заказы[]),\"\"),FLOOR(1+(ROW()-7)/4,1))-ROW(заказы[#Headers]),))","v":""},{"$f":"(FLOOR(1+(ROW()-7)/4,1)>COUNTIF(Заказ,$E$3))*((ROW()+2)<MATCH(\"яяя\",$B:$B))","v":1}]
[null,null,null,null,null,null,null,null,null,{"$f":"(FLOOR(1+(ROW()-7)/4,1)>COUNTIF(Заказ,$E$3))*((ROW()+2)<MATCH(\"яяя\",$B:$B))","v":1}]
[null,"Наименование товара",null,null,{"$f":"IF(FLOOR(1+(ROW()-7)/4,1)>COUNTIF(Заказ,$E$3),\"\",INDEX(Товар2,SMALL(IF(Заказ=$E$3,ROW(заказы[]),\"\"),FLOOR(1+(ROW()-7)/4,1))-ROW(заказы[#Headers]),))","v":""},null,null,"№",{"$f":"IF(FLOOR(1+(ROW()-7)/4,1)>COUNTIF(Заказ,$E$3),\"\",INDEX(Номер2,SMALL(IF(Заказ=$E$3,ROW(заказы[]),\"\"),FLOOR(1+(ROW()-7)/4,1))-ROW(заказы[#Headers]),))","v":""},{"$f":"(FLOOR(1+(ROW()-7)/4,1)>COUNTIF(Заказ,$E$3))*((ROW()+2)<MATCH(\"яяя\",$B:$B))","v":1}]
[null,null,null,null,null,null,null,null,null,{"$f":"(FLOOR(1+(ROW()-7)/4,1)>COUNTIF(Заказ,$E$3))*((ROW()+2)<MATCH(\"яяя\",$B:$B))","v":1}]
[null,"Заказываемое количество",null,null,{"$f":"IF(FLOOR(1+(ROW()-7)/4,1)>COUNTIF(Заказ,$E$3),\"\",INDEX(Количество,SMALL(IF(Заказ=$E$3,ROW(заказы[]),\"\"),FLOOR(1+(ROW()-7)/4,1))-ROW(заказы[#Headers]),))","v":""},"ед. по цене",null,null,{"$f":"IF(FLOOR(1+(ROW()-7)/4,1)>COUNTIF(Заказ,$E$3),\"\",INDEX(Цена2,SMALL(IF(Заказ=$E$3,ROW(заказы[]),\"\"),FLOOR(1+(ROW()-7)/4,1))-ROW(заказы[#Headers]),))","v":""},{"$f":"(FLOOR(1+(ROW()-7)/4,1)>COUNTIF(Заказ,$E$3))*((ROW()+2)<MATCH(\"яяя\",$B:$B))","v":1}]
[null,null,null,null,null,null,null,null,null,{"$f":"(FLOOR(1+(ROW()-7)/4,1)>COUNTIF(Заказ,$E$3))*((ROW()+2)<MATCH(\"яяя\",$B:$B))","v":1}]
[null,"Наименование товара",null,null,{"$f":"IF(FLOOR(1+(ROW()-7)/4,1)>COUNTIF(Заказ,$E$3),\"\",INDEX(Товар2,SMALL(IF(Заказ=$E$3,ROW(заказы[]),\"\"),FLOOR(1+(ROW()-7)/4,1))-ROW(заказы[#Headers]),))","v":""},null,null,"№",{"$f":"IF(FLOOR(1+(ROW()-7)/4,1)>COUNTIF(Заказ,$E$3),\"\",INDEX(Номер2,SMALL(IF(Заказ=$E$3,ROW(заказы[]),\"\"),FLOOR(1+(ROW()-7)/4,1))-ROW(заказы[#Headers]),))","v":""},{"$f":"(FLOOR(1+(ROW()-7)/4,1)>COUNTIF(Заказ,$E$3))*((ROW()+2)<MATCH(\"яяя\",$B:$B))","v":1}]
[null,null,null,null,null,null,null,null,null,{"$f":"(FLOOR(1+(ROW()-7)/4,1)>COUNTIF(Заказ,$E$3))*((ROW()+2)<MATCH(\"яяя\",$B:$B))","v":1}]
[null,"Заказываемое количество",null,null,{"$f":"IF(FLOOR(1+(ROW()-7)/4,1)>COUNTIF(Заказ,$E$3),\"\",INDEX(Количество,SMALL(IF(Заказ=$E$3,ROW(заказы[]),\"\"),FLOOR(1+(ROW()-7)/4,1))-ROW(заказы[#Headers]),))","v":""},"ед. по цене",null,null,{"$f":"IF(FLOOR(1+(ROW()-7)/4,1)>COUNTIF(Заказ,$E$3),\"\",INDEX(Цена2,SMALL(IF(Заказ=$E$3,ROW(заказы[]),\"\"),FLOOR(1+(ROW()-7)/4,1))-ROW(заказы[#Headers]),))","v":""},{"$f":"(FLOOR(1+(ROW()-7)/4,1)>COUNTIF(Заказ,$E$3))*((ROW()+2)<MATCH(\"яяя\",$B:$B))","v":1}]
[null,null,null,null,null,null,null,null,null,{"$f":"(FLOOR(1+(ROW()-7)/4,1)>COUNTIF(Заказ,$E$3))*((ROW()+2)<MATCH(\"яяя\",$B:$B))","v":1}]
[null,"Наименование товара",null,null,{"$f":"IF(FLOOR(1+(ROW()-7)/4,1)>COUNTIF(Заказ,$E$3),\"\",INDEX(Товар2,SMALL(IF(Заказ=$E$3,ROW(заказы[]),\"\"),FLOOR(1+(ROW()-7)/4,1))-ROW(заказы[#Headers]),))","v":""},null,null,"№",{"$f":"IF(FLOOR(1+(ROW()-7)/4,1)>COUNTIF(Заказ,$E$3),\"\",INDEX(Номер2,SMALL(IF(Заказ=$E$3,ROW(заказы[]),\"\"),FLOOR(1+(ROW()-7)/4,1))-ROW(заказы[#Headers]),))","v":""},{"$f":"(FLOOR(1+(ROW()-7)/4,1)>COUNTIF(Заказ,$E$3))*((ROW()+2)<MATCH(\"яяя\",$B:$B))","v":1}]
[null,null,null,null,null,null,null,null,null,{"$f":"(FLOOR(1+(ROW()-7)/4,1)>COUNTIF(Заказ,$E$3))*((ROW()+2)<MATCH(\"яяя\",$B:$B))","v":1}]
[null,"Заказываемое количество",null,null,{"$f":"IF(FLOOR(1+(ROW()-7)/4,1)>COUNTIF(Заказ,$E$3),\"\",INDEX(Количество,SMALL(IF(Заказ=$E$3,ROW(заказы[]),\"\"),FLOOR(1+(ROW()-7)/4,1))-ROW(заказы[#Headers]),))","v":""},"ед. по цене",null,null,{"$f":"IF(FLOOR(1+(ROW()-7)/4,1)>COUNTIF(Заказ,$E$3),\"\",INDEX(Цена2,SMALL(IF(Заказ=$E$3,ROW(заказы[]),\"\"),FLOOR(1+(ROW()-7)/4,1))-ROW(заказы[#Headers]),))","v":""},{"$f":"(FLOOR(1+(ROW()-7)/4,1)>COUNTIF(Заказ,$E$3))*((ROW()+2)<MATCH(\"яяя\",$B:$B))","v":1}]
[null,null,null,null,null,null,null,null,null,{"$f":"(FLOOR(1+(ROW()-7)/4,1)>COUNTIF(Заказ,$E$3))*((ROW()+2)<MATCH(\"яяя\",$B:$B))","v":1}]
[null,"Наименование товара",null,null,{"$f":"IF(FLOOR(1+(ROW()-7)/4,1)>COUNTIF(Заказ,$E$3),\"\",INDEX(Товар2,SMALL(IF(Заказ=$E$3,ROW(заказы[]),\"\"),FLOOR(1+(ROW()-7)/4,1))-ROW(заказы[#Headers]),))","v":""},null,null,"№",{"$f":"IF(FLOOR(1+(ROW()-7)/4,1)>COUNTIF(Заказ,$E$3),\"\",INDEX(Номер2,SMALL(IF(Заказ=$E$3,ROW(заказы[]),\"\"),FLOOR(1+(ROW()-7)/4,1))-ROW(заказы[#Headers]),))","v":""},{"$f":"(FLOOR(1+(ROW()-7)/4,1)>COUNTIF(Заказ,$E$3))*((ROW()+2)<MATCH(\"яяя\",$B:$B))","v":1}]
[null,null,null,null,null,null,null,null,null,{"$f":"(FLOOR(1+(ROW()-7)/4,1)>COUNTIF(Заказ,$E$3))*((ROW()+2)<MATCH(\"яяя\",$B:$B))","v":1}]
[null,"Заказываемое количество",null,null,{"$f":"IF(FLOOR(1+(ROW()-7)/4,1)>COUNTIF(Заказ,$E$3),\"\",INDEX(Количество,SMALL(IF(Заказ=$E$3,ROW(заказы[]),\"\"),FLOOR(1+(ROW()-7)/4,1))-ROW(заказы[#Headers]),))","v":""},"ед. по цене",null,null,{"$f":"IF(FLOOR(1+(ROW()-7)/4,1)>COUNTIF(Заказ,$E$3),\"\",INDEX(Цена2,SMALL(IF(Заказ=$E$3,ROW(заказы[]),\"\"),FLOOR(1+(ROW()-7)/4,1))-ROW(заказы[#Headers]),))","v":""},{"$f":"(FLOOR(1+(ROW()-7)/4,1)>COUNTIF(Заказ,$E$3))*((ROW()+2)<MATCH(\"яяя\",$B:$B))","v":1}]
[null,null,null,null,null,null,null,null,null,{"$f":"(FLOOR(1+(ROW()-7)/4,1)>COUNTIF(Заказ,$E$3))*((ROW()+2)<MATCH(\"яяя\",$B:$B))","v":1}]
[null,"Наименование товара",null,null,{"$f":"IF(FLOOR(1+(ROW()-7)/4,1)>COUNTIF(Заказ,$E$3),\"\",INDEX(Товар2,SMALL(IF(Заказ=$E$3,ROW(заказы[]),\"\"),FLOOR(1+(ROW()-7)/4,1))-ROW(заказы[#Headers]),))","v":""},null,null,"№",{"$f":"IF(FLOOR(1+(ROW()-7)/4,1)>COUNTIF(Заказ,$E$3),\"\",INDEX(Номер2,SMALL(IF(Заказ=$E$3,ROW(заказы[]),\"\"),FLOOR(1+(ROW()-7)/4,1))-ROW(заказы[#Headers]),))","v":""},{"$f":"(FLOOR(1+(ROW()-7)/4,1)>COUNTIF(Заказ,$E$3))*((ROW()+2)<MATCH(\"яяя\",$B:$B))","v":1}]
[null,null,null,null,null,null,null,null,null,{"$f":"(FLOOR(1+(ROW()-7)/4,1)>COUNTIF(Заказ,$E$3))*((ROW()+2)<MATCH(\"яяя\",$B:$B))","v":1}]
[null,"Заказываемое количество",null,null,{"$f":"IF(FLOOR(1+(ROW()-7)/4,1)>COUNTIF(Заказ,$E$3),\"\",INDEX(Количество,SMALL(IF(Заказ=$E$3,ROW(заказы[]),\"\"),FLOOR(1+(ROW()-7)/4,1))-ROW(заказы[#Headers]),))","v":""},"ед. по цене",null,null,{"$f":"IF(FLOOR(1+(ROW()-7)/4,1)>COUNTIF(Заказ,$E$3),\"\",INDEX(Цена2,SMALL(IF(Заказ=$E$3,ROW(заказы[]),\"\"),FLOOR(1+(ROW()-7)/4,1))-ROW(заказы[#Headers]),))","v":""},{"$f":"(FLOOR(1+(ROW()-7)/4,1)>COUNTIF(Заказ,$E$3))*((ROW()+2)<MATCH(\"яяя\",$B:$B))","v":1}]
[null,null,null,null,null,null,null,null,null,{"$f":"(FLOOR(1+(ROW()-7)/4,1)>COUNTIF(Заказ,$E$3))*((ROW()+2)<MATCH(\"яяя\",$B:$B))","v":1}]
[null,"Наименование товара",null,null,{"$f":"IF(FLOOR(1+(ROW()-7)/4,1)>COUNTIF(Заказ,$E$3),\"\",INDEX(Товар2,SMALL(IF(Заказ=$E$3,ROW(заказы[]),\"\"),FLOOR(1+(ROW()-7)/4,1))-ROW(заказы[#Headers]),))","v":""},null,null,"№",{"$f":"IF(FLOOR(1+(ROW()-7)/4,1)>COUNTIF(Заказ,$E$3),\"\",INDEX(Номер2,SMALL(IF(Заказ=$E$3,ROW(заказы[]),\"\"),FLOOR(1+(ROW()-7)/4,1))-ROW(заказы[#Headers]),))","v":""},{"$f":"(FLOOR(1+(ROW()-7)/4,1)>COUNTIF(Заказ,$E$3))*((ROW()+2)<MATCH(\"яяя\",$B:$B))","v":1}]
[null,null,null,null,null,null,null,null,null,{"$f":"(FLOOR(1+(ROW()-7)/4,1)>COUNTIF(Заказ,$E$3))*((ROW()+2)<MATCH(\"яяя\",$B:$B))","v":1}]
[null,"Заказываемое количество",null,null,{"$f":"IF(FLOOR(1+(ROW()-7)/4,1)>COUNTIF(Заказ,$E$3),\"\",INDEX(Количество,SMALL(IF(Заказ=$E$3,ROW(заказы[]),\"\"),FLOOR(1+(ROW()-7)/4,1))-ROW(заказы[#Headers]),))","v":""},"ед. по цене",null,null,{"$f":"IF(FLOOR(1+(ROW()-7)/4,1)>COUNTIF(Заказ,$E$3),\"\",INDEX(Цена2,SMALL(IF(Заказ=$E$3,ROW(заказы[]),\"\"),FLOOR(1+(ROW()-7)/4,1))-ROW(заказы[#Headers]),))","v":""},{"$f":"(FLOOR(1+(ROW()-7)/4,1)>COUNTIF(Заказ,$E$3))*((ROW()+2)<MATCH(\"яяя\",$B:$B))","v":1}]
[null,null,null,null,null,null,null,null,null,{"$f":"(FLOOR(1+(ROW()-7)/4,1)>COUNTIF(Заказ,$E$3))*((ROW()+2)<MATCH(\"яяя\",$B:$B))","v":1}]
[null,"Наименование товара",null,null,{"$f":"IF(FLOOR(1+(ROW()-7)/4,1)>COUNTIF(Заказ,$E$3),\"\",INDEX(Товар2,SMALL(IF(Заказ=$E$3,ROW(заказы[]),\"\"),FLOOR(1+(ROW()-7)/4,1))-ROW(заказы[#Headers]),))","v":""},null,null,"№",{"$f":"IF(FLOOR(1+(ROW()-7)/4,1)>COUNTIF(Заказ,$E$3),\"\",INDEX(Номер2,SMALL(IF(Заказ=$E$3,ROW(заказы[]),\"\"),FLOOR(1+(ROW()-7)/4,1))-ROW(заказы[#Headers]),))","v":""},{"$f":"(FLOOR(1+(ROW()-7)/4,1)>COUNTIF(Заказ,$E$3))*((ROW()+2)<MATCH(\"яяя\",$B:$B))","v":1}]
[null,null,null,null,null,null,null,null,null,{"$f":"(FLOOR(1+(ROW()-7)/4,1)>COUNTIF(Заказ,$E$3))*((ROW()+2)<MATCH(\"яяя\",$B:$B))","v":1}]
[null,"Заказываемое количество",null,null,{"$f":"IF(FLOOR(1+(ROW()-7)/4,1)>COUNTIF(Заказ,$E$3),\"\",INDEX(Количество,SMALL(IF(Заказ=$E$3,ROW(заказы[]),\"\"),FLOOR(1+(ROW()-7)/4,1))-ROW(заказы[#Headers]),))","v":""},"ед. по цене",null,null,{"$f":"IF(FLOOR(1+(ROW()-7)/4,1)>COUNTIF(Заказ,$E$3),\"\",INDEX(Цена2,SMALL(IF(Заказ=$E$3,ROW(заказы[]),\"\"),FLOOR(1+(ROW()-7)/4,1))-ROW(заказы[#Headers]),))","v":""},{"$f":"(FLOOR(1+(ROW()-7)/4,1)>COUNTIF(Заказ,$E$3))*((ROW()+2)<MATCH(\"яяя\",$B:$B))","v":1}]
[null,null,null,null,null,null,null,null,null,{"$f":"(FLOOR(1+(ROW()-7)/4,1)>COUNTIF(Заказ,$E$3))*((ROW()+2)<MATCH(\"яяя\",$B:$B))","v":1}]
[null,"Наименование товара",null,null,{"$f":"IF(FLOOR(1+(ROW()-7)/4,1)>COUNTIF(Заказ,$E$3),\"\",INDEX(Товар2,SMALL(IF(Заказ=$E$3,ROW(заказы[]),\"\"),FLOOR(1+(ROW()-7)/4,1))-ROW(заказы[#Headers]),))","v":""},null,null,"№",{"$f":"IF(FLOOR(1+(ROW()-7)/4,1)>COUNTIF(Заказ,$E$3),\"\",INDEX(Номер2,SMALL(IF(Заказ=$E$3,ROW(заказы[]),\"\"),FLOOR(1+(ROW()-7)/4,1))-ROW(заказы[#Headers]),))","v":""},{"$f":"(FLOOR(1+(ROW()-7)/4,1)>COUNTIF(Заказ,$E$3))*((ROW()+2)<MATCH(\"яяя\",$B:$B))","v":1}]
[null,null,null,null,null,null,null,null,null,{"$f":"(FLOOR(1+(ROW()-7)/4,1)>COUNTIF(Заказ,$E$3))*((ROW()+2)<MATCH(\"яяя\",$B:$B))","v":1}]
[null,"Заказываемое количество",null,null,{"$f":"IF(FLOOR(1+(ROW()-7)/4,1)>COUNTIF(Заказ,$E$3),\"\",INDEX(Количество,SMALL(IF(Заказ=$E$3,ROW(заказы[]),\"\"),FLOOR(1+(ROW()-7)/4,1))-ROW(заказы[#Headers]),))","v":""},"ед. по цене",null,null,{"$f":"IF(FLOOR(1+(ROW()-7)/4,1)>COUNTIF(Заказ,$E$3),\"\",INDEX(Цена2,SMALL(IF(Заказ=$E$3,ROW(заказы[]),\"\"),FLOOR(1+(ROW()-7)/4,1))-ROW(заказы[#Headers]),))","v":""},{"$f":"(FLOOR(1+(ROW()-7)/4,1)>COUNTIF(Заказ,$E$3))*((ROW()+2)<MATCH(\"яяя\",$B:$B))","v":1}]
[null,null,null,null,null,null,null,null,null,{"$f":"(FLOOR(1+(ROW()-7)/4,1)>COUNTIF(Заказ,$E$3))*((ROW()+2)<MATCH(\"яяя\",$B:$B))","v":1}]
[null,"Наименование товара",null,null,{"$f":"IF(FLOOR(1+(ROW()-7)/4,1)>COUNTIF(Заказ,$E$3),\"\",INDEX(Товар2,SMALL(IF(Заказ=$E$3,ROW(заказы[]),\"\"),FLOOR(1+(ROW()-7)/4,1))-ROW(заказы[#Headers]),))","v":""},null,null,"№",{"$f":"IF(FLOOR(1+(ROW()-7)/4,1)>COUNTIF(Заказ,$E$3),\"\",INDEX(Номер2,SMALL(IF(Заказ=$E$3,ROW(заказы[]),\"\"),FLOOR(1+(ROW()-7)/4,1))-ROW(заказы[#Headers]),))","v":""},{"$f":"(FLOOR(1+(ROW()-7)/4,1)>COUNTIF(Заказ,$E$3))*((ROW()+2)<MATCH(\"яяя\",$B:$B))","v":1}]
[null,null,null,null,null,null,null,null,null,{"$f":"(FLOOR(1+(ROW()-7)/4,1)>COUNTIF(Заказ,$E$3))*((ROW()+2)<MATCH(\"яяя\",$B:$B))","v":1}]
[null,"Заказываемое количество",null,null,{"$f":"IF(FLOOR(1+(ROW()-7)/4,1)>COUNTIF(Заказ,$E$3),\"\",INDEX(Количество,SMALL(IF(Заказ=$E$3,ROW(заказы[]),\"\"),FLOOR(1+(ROW()-7)/4,1))-ROW(заказы[#Headers]),))","v":""},"ед. по цене",null,null,{"$f":"IF(FLOOR(1+(ROW()-7)/4,1)>COUNTIF(Заказ,$E$3),\"\",INDEX(Цена2,SMALL(IF(Заказ=$E$3,ROW(заказы[]),\"\"),FLOOR(1+(ROW()-7)/4,1))-ROW(заказы[#Headers]),))","v":""},{"$f":"(FLOOR(1+(ROW()-7)/4,1)>COUNTIF(Заказ,$E$3))*((ROW()+2)<MATCH(\"яяя\",$B:$B))","v":1}]
[null,null,null,null,null,null,null,null,null,{"$f":"(FLOOR(1+(ROW()-7)/4,1)>COUNTIF(Заказ,$E$3))*((ROW()+2)<MATCH(\"яяя\",$B:$B))","v":1}]
[null,"Наименование товара",null,null,{"$f":"IF(FLOOR(1+(ROW()-7)/4,1)>COUNTIF(Заказ,$E$3),\"\",INDEX(Товар2,SMALL(IF(Заказ=$E$3,ROW(заказы[]),\"\"),FLOOR(1+(ROW()-7)/4,1))-ROW(заказы[#Headers]),))","v":""},null,null,"№",{"$f":"IF(FLOOR(1+(ROW()-7)/4,1)>COUNTIF(Заказ,$E$3),\"\",INDEX(Номер2,SMALL(IF(Заказ=$E$3,ROW(заказы[]),\"\"),FLOOR(1+(ROW()-7)/4,1))-ROW(заказы[#Headers]),))","v":""},{"$f":"(FLOOR(1+(ROW()-7)/4,1)>COUNTIF(Заказ,$E$3))*((ROW()+2)<MATCH(\"яяя\",$B:$B))","v":1}]
[null,null,null,null,null,null,null,null,null,{"$f":"(FLOOR(1+(ROW()-7)/4,1)>COUNTIF(Заказ,$E$3))*((ROW()+2)<MATCH(\"яяя\",$B:$B))","v":1}]
[null,"Заказываемое количество",null,null,{"$f":"IF(FLOOR(1+(ROW()-7)/4,1)>COUNTIF(Заказ,$E$3),\"\",INDEX(Количество,SMALL(IF(Заказ=$E$3,ROW(заказы[]),\"\"),FLOOR(1+(ROW()-7)/4,1))-ROW(заказы[#Headers]),))","v":""},"ед. по цене",null,null,{"$f":"IF(FLOOR(1+(ROW()-7)/4,1)>COUNTIF(Заказ,$E$3),\"\",INDEX(Цена2,SMALL(IF(Заказ=$E$3,ROW(заказы[]),\"\"),FLOOR(1+(ROW()-7)/4,1))-ROW(заказы[#Headers]),))","v":""},{"$f":"(FLOOR(1+(ROW()-7)/4,1)>COUNTIF(Заказ,$E$3))*((ROW()+2)<MATCH(\"яяя\",$B:$B))","v":1}]
[null,null,null,null,null,null,null,null,null,{"$f":"(FLOOR(1+(ROW()-7)/4,1)>COUNTIF(Заказ,$E$3))*((ROW()+2)<MATCH(\"яяя\",$B:$B))","v":1}]
[null,"Наименование товара",null,null,{"$f":"IF(FLOOR(1+(ROW()-7)/4,1)>COUNTIF(Заказ,$E$3),\"\",INDEX(Товар2,SMALL(IF(Заказ=$E$3,ROW(заказы[]),\"\"),FLOOR(1+(ROW()-7)/4,1))-ROW(заказы[#Headers]),))","v":""},null,null,"№",{"$f":"IF(FLOOR(1+(ROW()-7)/4,1)>COUNTIF(Заказ,$E$3),\"\",INDEX(Номер2,SMALL(IF(Заказ=$E$3,ROW(заказы[]),\"\"),FLOOR(1+(ROW()-7)/4,1))-ROW(заказы[#Headers]),))","v":""},{"$f":"(FLOOR(1+(ROW()-7)/4,1)>COUNTIF(Заказ,$E$3))*((ROW()+2)<MATCH(\"яяя\",$B:$B))","v":1}]
[null,null,null,null,null,null,null,null,null,{"$f":"(FLOOR(1+(ROW()-7)/4,1)>COUNTIF(Заказ,$E$3))*((ROW()+2)<MATCH(\"яяя\",$B:$B))","v":1}]
[null,"Заказываемое количество",null,null,{"$f":"IF(FLOOR(1+(ROW()-7)/4,1)>COUNTIF(Заказ,$E$3),\"\",INDEX(Количество,SMALL(IF(Заказ=$E$3,ROW(заказы[]),\"\"),FLOOR(1+(ROW()-7)/4,1))-ROW(заказы[#Headers]),))","v":""},"ед. по цене",null,null,{"$f":"IF(FLOOR(1+(ROW()-7)/4,1)>COUNTIF(Заказ,$E$3),\"\",INDEX(Цена2,SMALL(IF(Заказ=$E$3,ROW(заказы[]),\"\"),FLOOR(1+(ROW()-7)/4,1))-ROW(заказы[#Headers]),))","v":""},{"$f":"(FLOOR(1+(ROW()-7)/4,1)>COUNTIF(Заказ,$E$3))*((ROW()+2)<MATCH(\"яяя\",$B:$B))","v":1}]
[null,null,null,null,null,null,null,null,null,{"$f":"(FLOOR(1+(ROW()-7)/4,1)>COUNTIF(Заказ,$E$3))*((ROW()+2)<MATCH(\"яяя\",$B:$B))","v":1}]
[null,"Наименование товара",null,null,{"$f":"IF(FLOOR(1+(ROW()-7)/4,1)>COUNTIF(Заказ,$E$3),\"\",INDEX(Товар2,SMALL(IF(Заказ=$E$3,ROW(заказы[]),\"\"),FLOOR(1+(ROW()-7)/4,1))-ROW(заказы[#Headers]),))","v":""},null,null,"№",{"$f":"IF(FLOOR(1+(ROW()-7)/4,1)>COUNTIF(Заказ,$E$3),\"\",INDEX(Номер2,SMALL(IF(Заказ=$E$3,ROW(заказы[]),\"\"),FLOOR(1+(ROW()-7)/4,1))-ROW(заказы[#Headers]),))","v":""},{"$f":"(FLOOR(1+(ROW()-7)/4,1)>COUNTIF(Заказ,$E$3))*((ROW()+2)<MATCH(\"яяя\",$B:$B))","v":1}]
[null,null,null,null,null,null,null,null,null,{"$f":"(FLOOR(1+(ROW()-7)/4,1)>COUNTIF(Заказ,$E$3))*((ROW()+2)<MATCH(\"яяя\",$B:$B))","v":1}]
[null,"Заказываемое количество",null,null,{"$f":"IF(FLOOR(1+(ROW()-7)/4,1)>COUNTIF(Заказ,$E$3),\"\",INDEX(Количество,SMALL(IF(Заказ=$E$3,ROW(заказы[]),\"\"),FLOOR(1+(ROW()-7)/4,1))-ROW(заказы[#Headers]),))","v":""},"ед. по цене",null,null,{"$f":"IF(FLOOR(1+(ROW()-7)/4,1)>COUNTIF(Заказ,$E$3),\"\",INDEX(Цена2,SMALL(IF(Заказ=$E$3,ROW(заказы[]),\"\"),FLOOR(1+(ROW()-7)/4,1))-ROW(заказы[#Headers]),))","v":""},{"$f":"(FLOOR(1+(ROW()-7)/4,1)>COUNTIF(Заказ,$E$3))*((ROW()+2)<MATCH(\"яяя\",$B:$B))","v":1}]
[null,null,null,null,null,null,null,null,null,{"$f":"(FLOOR(1+(ROW()-7)/4,1)>COUNTIF(Заказ,$E$3))*((ROW()+2)<MATCH(\"яяя\",$B:$B))","v":1}]
[null,"Наименование товара",null,null,{"$f":"IF(FLOOR(1+(ROW()-7)/4,1)>COUNTIF(Заказ,$E$3),\"\",INDEX(Товар2,SMALL(IF(Заказ=$E$3,ROW(заказы[]),\"\"),FLOOR(1+(ROW()-7)/4,1))-ROW(заказы[#Headers]),))","v":""},null,null,"№",{"$f":"IF(FLOOR(1+(ROW()-7)/4,1)>COUNTIF(Заказ,$E$3),\"\",INDEX(Номер2,SMALL(IF(Заказ=$E$3,ROW(заказы[]),\"\"),FLOOR(1+(ROW()-7)/4,1))-ROW(заказы[#Headers]),))","v":""},{"$f":"(FLOOR(1+(ROW()-7)/4,1)>COUNTIF(Заказ,$E$3))*((ROW()+2)<MATCH(\"яяя\",$B:$B))","v":1}]
[null,null,null,null,null,null,null,null,null,{"$f":"(FLOOR(1+(ROW()-7)/4,1)>COUNTIF(Заказ,$E$3))*((ROW()+2)<MATCH(\"яяя\",$B:$B))","v":1}]
[null,"Заказываемое количество",null,null,{"$f":"IF(FLOOR(1+(ROW()-7)/4,1)>COUNTIF(Заказ,$E$3),\"\",INDEX(Количество,SMALL(IF(Заказ=$E$3,ROW(заказы[]),\"\"),FLOOR(1+(ROW()-7)/4,1))-ROW(заказы[#Headers]),))","v":""},"ед. по цене",null,null,{"$f":"IF(FLOOR(1+(ROW()-7)/4,1)>COUNTIF(Заказ,$E$3),\"\",INDEX(Цена2,SMALL(IF(Заказ=$E$3,ROW(заказы[]),\"\"),FLOOR(1+(ROW()-7)/4,1))-ROW(заказы[#Headers]),))","v":""},{"$f":"(FLOOR(1+(ROW()-7)/4,1)>COUNTIF(Заказ,$E$3))*((ROW()+2)<MATCH(\"яяя\",$B:$B))","v":1}]
[null,null,null,null,null,null,null,null,null,{"$f":"(FLOOR(1+(ROW()-7)/4,1)>COUNTIF(Заказ,$E$3))*((ROW()+2)<MATCH(\"яяя\",$B:$B))","v":1}]
[null,"Наименование товара",null,null,{"$f":"IF(FLOOR(1+(ROW()-7)/4,1)>COUNTIF(Заказ,$E$3),\"\",INDEX(Товар2,SMALL(IF(Заказ=$E$3,ROW(заказы[]),\"\"),FLOOR(1+(ROW()-7)/4,1))-ROW(заказы[#Headers]),))","v":""},null,null,"№",{"$f":"IF(FLOOR(1+(ROW()-7)/4,1)>COUNTIF(Заказ,$E$3),\"\",INDEX(Номер2,SMALL(IF(Заказ=$E$3,ROW(заказы[]),\"\"),FLOOR(1+(ROW()-7)/4,1))-ROW(заказы[#Headers]),))","v":""},{"$f":"(FLOOR(1+(ROW()-7)/4,1)>COUNTIF(Заказ,$E$3))*((ROW()+2)<MATCH(\"яяя\",$B:$B))","v":1}]
[null,null,null,null,null,null,null,null,null,{"$f":"(FLOOR(1+(ROW()-7)/4,1)>COUNTIF(Заказ,$E$3))*((ROW()+2)<MATCH(\"яяя\",$B:$B))","v":1}]
[null,"Заказываемое количество",null,null,{"$f":"IF(FLOOR(1+(ROW()-7)/4,1)>COUNTIF(Заказ,$E$3),\"\",INDEX(Количество,SMALL(IF(Заказ=$E$3,ROW(заказы[]),\"\"),FLOOR(1+(ROW()-7)/4,1))-ROW(заказы[#Headers]),))","v":""},"ед. по цене",null,null,{"$f":"IF(FLOOR(1+(ROW()-7)/4,1)>COUNTIF(Заказ,$E$3),\"\",INDEX(Цена2,SMALL(IF(Заказ=$E$3,ROW(заказы[]),\"\"),FLOOR(1+(ROW()-7)/4,1))-ROW(заказы[#Headers]),))","v":""},{"$f":"(FLOOR(1+(ROW()-7)/4,1)>COUNTIF(Заказ,$E$3))*((ROW()+2)<MATCH(\"яяя\",$B:$B))","v":1}]
[null,null,null,null,null,null,null,null,null,{"$f":"(FLOOR(1+(ROW()-7)/4,1)>COUNTIF(Заказ,$E$3))*((ROW()+2)<MATCH(\"яяя\",$B:$B))","v":1}]
[null,"Наименование товара",null,null,{"$f":"IF(FLOOR(1+(ROW()-7)/4,1)>COUNTIF(Заказ,$E$3),\"\",INDEX(Товар2,SMALL(IF(Заказ=$E$3,ROW(заказы[]),\"\"),FLOOR(1+(ROW()-7)/4,1))-ROW(заказы[#Headers]),))","v":""},null,null,"№",{"$f":"IF(FLOOR(1+(ROW()-7)/4,1)>COUNTIF(Заказ,$E$3),\"\",INDEX(Номер2,SMALL(IF(Заказ=$E$3,ROW(заказы[]),\"\"),FLOOR(1+(ROW()-7)/4,1))-ROW(заказы[#Headers]),))","v":""},{"$f":"(FLOOR(1+(ROW()-7)/4,1)>COUNTIF(Заказ,$E$3))*((ROW()+2)<MATCH(\"яяя\",$B:$B))","v":1}]
[null,null,null,null,null,null,null,null,null,{"$f":"(FLOOR(1+(ROW()-7)/4,1)>COUNTIF(Заказ,$E$3))*((ROW()+2)<MATCH(\"яяя\",$B:$B))","v":1}]
[null,"Заказываемое количество",null,null,{"$f":"IF(FLOOR(1+(ROW()-7)/4,1)>COUNTIF(Заказ,$E$3),\"\",INDEX(Количество,SMALL(IF(Заказ=$E$3,ROW(заказы[]),\"\"),FLOOR(1+(ROW()-7)/4,1))-ROW(заказы[#Headers]),))","v":""},"ед. по цене",null,null,{"$f":"IF(FLOOR(1+(ROW()-7)/4,1)>COUNTIF(Заказ,$E$3),\"\",INDEX(Цена2,SMALL(IF(Заказ=$E$3,ROW(заказы[]),\"\"),FLOOR(1+(ROW()-7)/4,1))-ROW(заказы[#Headers]),))","v":""},{"$f":"(FLOOR(1+(ROW()-7)/4,1)>COUNTIF(Заказ,$E$3))*((ROW()+2)<MATCH(\"яяя\",$B:$B))","v":1}]
[null,null,null,null,null,null,null,null,null,{"$f":"(FLOOR(1+(ROW()-7)/4,1)>COUNTIF(Заказ,$E$3))*((ROW()+2)<MATCH(\"яяя\",$B:$B))","v":1}]
[null,"Наименование товара",null,null,{"$f":"IF(FLOOR(1+(ROW()-7)/4,1)>COUNTIF(Заказ,$E$3),\"\",INDEX(Товар2,SMALL(IF(Заказ=$E$3,ROW(заказы[]),\"\"),FLOOR(1+(ROW()-7)/4,1))-ROW(заказы[#Headers]),))","v":""},null,null,"№",{"$f":"IF(FLOOR(1+(ROW()-7)/4,1)>COUNTIF(Заказ,$E$3),\"\",INDEX(Номер2,SMALL(IF(Заказ=$E$3,ROW(заказы[]),\"\"),FLOOR(1+(ROW()-7)/4,1))-ROW(заказы[#Headers]),))","v":""},{"$f":"(FLOOR(1+(ROW()-7)/4,1)>COUNTIF(Заказ,$E$3))*((ROW()+2)<MATCH(\"яяя\",$B:$B))","v":1}]
[null,null,null,null,null,null,null,null,null,{"$f":"(FLOOR(1+(ROW()-7)/4,1)>COUNTIF(Заказ,$E$3))*((ROW()+2)<MATCH(\"яяя\",$B:$B))","v":1}]
[null,"Заказываемое количество",null,null,{"$f":"IF(FLOOR(1+(ROW()-7)/4,1)>COUNTIF(Заказ,$E$3),\"\",INDEX(Количество,SMALL(IF(Заказ=$E$3,ROW(заказы[]),\"\"),FLOOR(1+(ROW()-7)/4,1))-ROW(заказы[#Headers]),))","v":""},"ед. по цене",null,null,{"$f":"IF(FLOOR(1+(ROW()-7)/4,1)>COUNTIF(Заказ,$E$3),\"\",INDEX(Цена2,SMALL(IF(Заказ=$E$3,ROW(заказы[]),\"\"),FLOOR(1+(ROW()-7)/4,1))-ROW(заказы[#Headers]),))","v":""},{"$f":"(FLOOR(1+(ROW()-7)/4,1)>COUNTIF(Заказ,$E$3))*((ROW()+2)<MATCH(\"яяя\",$B:$B))","v":1}]
[null,null,null,null,null,null,null,null,null,{"$f":"(FLOOR(1+(ROW()-7)/4,1)>COUNTIF(Заказ,$E$3))*((ROW()+2)<MATCH(\"яяя\",$B:$B))","v":1}]
[null,"Наименование товара",null,null,{"$f":"IF(FLOOR(1+(ROW()-7)/4,1)>COUNTIF(Заказ,$E$3),\"\",INDEX(Товар2,SMALL(IF(Заказ=$E$3,ROW(заказы[]),\"\"),FLOOR(1+(ROW()-7)/4,1))-ROW(заказы[#Headers]),))","v":""},null,null,"№",{"$f":"IF(FLOOR(1+(ROW()-7)/4,1)>COUNTIF(Заказ,$E$3),\"\",INDEX(Номер2,SMALL(IF(Заказ=$E$3,ROW(заказы[]),\"\"),FLOOR(1+(ROW()-7)/4,1))-ROW(заказы[#Headers]),))","v":""},{"$f":"(FLOOR(1+(ROW()-7)/4,1)>COUNTIF(Заказ,$E$3))*((ROW()+2)<MATCH(\"яяя\",$B:$B))","v":1}]
[null,null,null,null,null,null,null,null,null,{"$f":"(FLOOR(1+(ROW()-7)/4,1)>COUNTIF(Заказ,$E$3))*((ROW()+2)<MATCH(\"яяя\",$B:$B))","v":1}]
[null,"Заказываемое количество",null,null,{"$f":"IF(FLOOR(1+(ROW()-7)/4,1)>COUNTIF(Заказ,$E$3),\"\",INDEX(Количество,SMALL(IF(Заказ=$E$3,ROW(заказы[]),\"\"),FLOOR(1+(ROW()-7)/4,1))-ROW(заказы[#Headers]),))","v":""},"ед. по цене",null,null,{"$f":"IF(FLOOR(1+(ROW()-7)/4,1)>COUNTIF(Заказ,$E$3),\"\",INDEX(Цена2,SMALL(IF(Заказ=$E$3,ROW(заказы[]),\"\"),FLOOR(1+(ROW()-7)/4,1))-ROW(заказы[#Headers]),))","v":""},{"$f":"(FLOOR(1+(ROW()-7)/4,1)>COUNTIF(Заказ,$E$3))*((ROW()+2)<MATCH(\"яяя\",$B:$B))","v":1}]
[null,null,null,null,null,null,null,null,null,{"$f":"(FLOOR(1+(ROW()-7)/4,1)>COUNTIF(Заказ,$E$3))*((ROW()+2)<MATCH(\"яяя\",$B:$B))","v":1}]
[null,"Наименование товара",null,null,{"$f":"IF(FLOOR(1+(ROW()-7)/4,1)>COUNTIF(Заказ,$E$3),\"\",INDEX(Товар2,SMALL(IF(Заказ=$E$3,ROW(заказы[]),\"\"),FLOOR(1+(ROW()-7)/4,1))-ROW(заказы[#Headers]),))","v":""},null,null,"№",{"$f":"IF(FLOOR(1+(ROW()-7)/4,1)>COUNTIF(Заказ,$E$3),\"\",INDEX(Номер2,SMALL(IF(Заказ=$E$3,ROW(заказы[]),\"\"),FLOOR(1+(ROW()-7)/4,1))-ROW(заказы[#Headers]),))","v":""},{"$f":"(FLOOR(1+(ROW()-7)/4,1)>COUNTIF(Заказ,$E$3))*((ROW()+2)<MATCH(\"яяя\",$B:$B))","v":1}]
[null,null,null,null,null,null,null,null,null,{"$f":"(FLOOR(1+(ROW()-7)/4,1)>COUNTIF(Заказ,$E$3))*((ROW()+2)<MATCH(\"яяя\",$B:$B))","v":1}]
[null,"Заказываемое количество",null,null,{"$f":"IF(FLOOR(1+(ROW()-7)/4,1)>COUNTIF(Заказ,$E$3),\"\",INDEX(Количество,SMALL(IF(Заказ=$E$3,ROW(заказы[]),\"\"),FLOOR(1+(ROW()-7)/4,1))-ROW(заказы[#Headers]),))","v":""},"ед. по цене",null,null,{"$f":"IF(FLOOR(1+(ROW()-7)/4,1)>COUNTIF(Заказ,$E$3),\"\",INDEX(Цена2,SMALL(IF(Заказ=$E$3,ROW(заказы[]),\"\"),FLOOR(1+(ROW()-7)/4,1))-ROW(заказы[#Headers]),))","v":""},{"$f":"(FLOOR(1+(ROW()-7)/4,1)>COUNTIF(Заказ,$E$3))*((ROW()+2)<MATCH(\"яяя\",$B:$B))","v":1}]
[null,null,null,null,null,null,null,null,null,{"$f":"(FLOOR(1+(ROW()-7)/4,1)>COUNTIF(Заказ,$E$3))*((ROW()+2)<MATCH(\"яяя\",$B:$B))","v":1}]
[null,"Наименование товара",null,null,{"$f":"IF(FLOOR(1+(ROW()-7)/4,1)>COUNTIF(Заказ,$E$3),\"\",INDEX(Товар2,SMALL(IF(Заказ=$E$3,ROW(заказы[]),\"\"),FLOOR(1+(ROW()-7)/4,1))-ROW(заказы[#Headers]),))","v":""},null,null,"№",{"$f":"IF(FLOOR(1+(ROW()-7)/4,1)>COUNTIF(Заказ,$E$3),\"\",INDEX(Номер2,SMALL(IF(Заказ=$E$3,ROW(заказы[]),\"\"),FLOOR(1+(ROW()-7)/4,1))-ROW(заказы[#Headers]),))","v":""},{"$f":"(FLOOR(1+(ROW()-7)/4,1)>COUNTIF(Заказ,$E$3))*((ROW()+2)<MATCH(\"яяя\",$B:$B))","v":1}]
[null,null,null,null,null,null,null,null,null,{"$f":"(FLOOR(1+(ROW()-7)/4,1)>COUNTIF(Заказ,$E$3))*((ROW()+2)<MATCH(\"яяя\",$B:$B))","v":1}]
[null,"Заказываемое количество",null,null,{"$f":"IF(FLOOR(1+(ROW()-7)/4,1)>COUNTIF(Заказ,$E$3),\"\",INDEX(Количество,SMALL(IF(Заказ=$E$3,ROW(заказы[]),\"\"),FLOOR(1+(ROW()-7)/4,1))-ROW(заказы[#Headers]),))","v":""},"ед. по цене",null,null,{"$f":"IF(FLOOR(1+(ROW()-7)/4,1)>COUNTIF(Заказ,$E$3),\"\",INDEX(Цена2,SMALL(IF(Заказ=$E$3,ROW(заказы[]),\"\"),FLOOR(1+(ROW()-7)/4,1))-ROW(заказы[#Headers]),))","v":""},{"$f":"(FLOOR(1+(ROW()-7)/4,1)>COUNTIF(Заказ,$E$3))*((ROW()+2)<MATCH(\"яяя\",$B:$B))","v":1}]
[null,null,null,null,null,null,null,null,null,{"$f":"(FLOOR(1+(ROW()-7)/4,1)>COUNTIF(Заказ,$E$3))*((ROW()+2)<MATCH(\"яяя\",$B:$B))","v":1}]
[null,"Наименование товара",null,null,{"$f":"IF(FLOOR(1+(ROW()-7)/4,1)>COUNTIF(Заказ,$E$3),\"\",INDEX(Товар2,SMALL(IF(Заказ=$E$3,ROW(заказы[]),\"\"),FLOOR(1+(ROW()-7)/4,1))-ROW(заказы[#Headers]),))","v":""},null,null,"№",{"$f":"IF(FLOOR(1+(ROW()-7)/4,1)>COUNTIF(Заказ,$E$3),\"\",INDEX(Номер2,SMALL(IF(Заказ=$E$3,ROW(заказы[]),\"\"),FLOOR(1+(ROW()-7)/4,1))-ROW(заказы[#Headers]),))","v":""},{"$f":"(FLOOR(1+(ROW()-7)/4,1)>COUNTIF(Заказ,$E$3))*((ROW()+2)<MATCH(\"яяя\",$B:$B))","v":1}]
[null,null,null,null,null,null,null,null,null,{"$f":"(FLOOR(1+(ROW()-7)/4,1)>COUNTIF(Заказ,$E$3))*((ROW()+2)<MATCH(\"яяя\",$B:$B))","v":1}]
[null,"Заказываемое количество",null,null,{"$f":"IF(FLOOR(1+(ROW()-7)/4,1)>COUNTIF(Заказ,$E$3),\"\",INDEX(Количество,SMALL(IF(Заказ=$E$3,ROW(заказы[]),\"\"),FLOOR(1+(ROW()-7)/4,1))-ROW(заказы[#Headers]),))","v":""},"ед. по цене",null,null,{"$f":"IF(FLOOR(1+(ROW()-7)/4,1)>COUNTIF(Заказ,$E$3),\"\",INDEX(Цена2,SMALL(IF(Заказ=$E$3,ROW(заказы[]),\"\"),FLOOR(1+(ROW()-7)/4,1))-ROW(заказы[#Headers]),))","v":""},{"$f":"(FLOOR(1+(ROW()-7)/4,1)>COUNTIF(Заказ,$E$3))*((ROW()+2)<MATCH(\"яяя\",$B:$B))","v":1}]
[null,null,null,null,null,null,null,null,null,{"$f":"(FLOOR(1+(ROW()-7)/4,1)>COUNTIF(Заказ,$E$3))*((ROW()+2)<MATCH(\"яяя\",$B:$B))","v":1}]
[null,"Общая стоимость заказа",null,null,{"$f":"SUMPRODUCT(Сумма*(Заказ=$E$3))","v":8020},"Скидка(%)",null,null,{"$f":"SUMPRODUCT(Скидка2*(Заказ=$E$3))/COUNTIF(Заказ,$E$3)","v":0.15},{"$f":"(FLOOR(1+(ROW()-7)/4,1)>COUNTIF(Заказ,$E$3))*((ROW()+2)<MATCH(\"яяя\",$B:$B))","v":0}]
[null,null,null,null,null,null,null,null,null,{"$f":"(FLOOR(1+(ROW()-7)/4,1)>COUNTIF(Заказ,$E$3))*((ROW()+2)<MATCH(\"яяя\",$B:$B))","v":0}]
[null,"К оплате",null,{"$f":"E171*(1-I171)","v":6817},null,"Оформил",null,null,null,{"$f":"(FLOOR(1+(ROW()-7)/4,1)>COUNTIF(Заказ,$E$3))*((ROW()+2)<MATCH(\"яяя\",$B:$B))","v":0}]
[null,null,null,null,null,null,null,null,null,{"$f":"(FLOOR(1+(ROW()-7)/4,1)>COUNTIF(Заказ,$E$3))*((ROW()+2)<MATCH(\"яяя\",$B:$B))","v":0}]